2CCN - Level 2 Cost Centre Name,,9CCN - Level 9 Cost Centre Name,9CCC - Level 9 Cost Centre Code,9AN - Level 9 Account Name,9AC - Level 9 Account Code,Transaction Description,Date Paid,Transaction Reference,Analysed Amount,2AC - Level 2 Account Codes,Supplier Name,Supplier Code
Gloucester City Council,23UE,Allotments,HI104,Operational Equipment <5000,5012,"Bulk Bag, Roadstone",01/09/2014,386984,114,NET,Buildbase Ltd*,03692D
Gloucester City Council,23UE,Business Support,PT250,Fuel,4012,Fuel,01/09/2014,389691,119.72,NET,Allstar Business Solutions Ltd (Arval),06594A
Gloucester City Council,23UE,Crematorium,HC200,Repair/Maint Of Monuments,3004,Sanctum 2000 tablet,01/09/2014,389685,421.5,NET,The Columbaria Company,55078T
Gloucester City Council,23UE,Docks Complex - Services,RB100,General Repair/Maint Buildings,3000,Ground floor reception works,01/09/2014,388564,802,NET,Pj Engineering Consultants Ltd,14428W
Gloucester City Council,23UE,Docks Complex - Services,RB100,Maint Of Grounds - General,3030,Ground Floor Fan Units,01/09/2014,388354,158,NET,Pj Engineering Consultants Ltd,14428W
Gloucester City Council,23UE,REDACTED,REDACTED,REDACTED,REDACTED,REDACTED,02/09/2014,REDACTED,120,NET,REDACTED,REDACTED
Gloucester City Council,23UE,Aspire Admin Charges,LC105,Other Minor Income,9900,Bailiff Payments 15/08/2014,02/09/2014,389796,66.8,NET,Aspire Sports & Cultural Trust,08135V
Gloucester City Council,23UE,Civica Admin Charges,RT105,Fees For Services Received,5350,CHD Subscription,02/09/2014,389067,4,NET,Companies House,58954E
Gloucester City Council,23UE,Community Safety Projects,FP500,Basic Pay - Temporary Staff,2751,TEMPORARY STAFF,02/09/2014,389533,496.4,NET,Travail Employment Ltd,49371W
Gloucester City Council,23UE,Electrical Investigatory Works,RY142,Contract Payments,0020,Fire Extinguisher,02/09/2014,389346,3.12,CAP,A & E Fire Equipment Limited,54289L
Gloucester City Council,23UE,Financial Services,RT200,Consultants Fees,5349,TEMPORARY STAFF,02/09/2014,389525,2610,NET,Robert Half Ltd,03959K
Gloucester City Council,23UE,Financial Services,RT200,Consultants Fees,5349,TEMPORARY STAFF,02/09/2014,389524,2610,NET,Robert Half Ltd,03959K
Gloucester City Council,23UE,General Drainage Works,PY241,Contract Payments,0020,Drainage,02/09/2014,389348,780.2,CAP,Buildbase Ltd*,03692D
Gloucester City Council,23UE,Group Mgr Cult Ser & Tourism,GR102,Consultants Fees,5349,Consultancy Services July 2014,02/09/2014,389074,5533.79,NET,Michael & Partners Limited,15101Z
Gloucester City Council,23UE,Homelessness,CH120,Basic Pay - Temporary Staff,2751,TEMPORARY STAFF,02/09/2014,389413,703,NET,Building Recruitment Company Ltd,55385E
Gloucester City Council,23UE,REDACTED,REDACTED,REDACTED,REDACTED,REDACTED,02/09/2014,REDACTED,364.6,NET,REDACTED,REDACTED
Gloucester City Council,23UE,REDACTED,REDACTED,REDACTED,REDACTED,REDACTED,02/09/2014,REDACTED,525,NET,REDACTED,REDACTED
Gloucester City Council,23UE,Human Resources,EH100,Fees For Services Received,5350,OH Services July 2014,02/09/2014,389499,957.5,NET,Industrial Medical & Safety Services Ltd,10668L
Gloucester City Council,23UE,Registration Of Electors,RS400,Fees For Services Received,5350,Room Hire 22/05/2014,02/09/2014,389509,205,NET,Lonsdale Road Methodist Church,04793L
Gloucester City Council,23UE,Registration Of Electors,RS400,Fees For Services Received,5350,Room Hire 22/05/2014,02/09/2014,389507,55.51,NET,Hatherley Infant School,07265P
Gloucester City Council,23UE,Registration Of Electors,RS400,Fees For Services Received,5350,Room Hire 22/05/2014,02/09/2014,389508,61.35,NET,Meadowside Primary School,06353B
Gloucester City Council,23UE,Registration Of Electors,RS400,Printing,5300,Ballot papers,02/09/2014,389522,138.04,NET,Print Image Network Ltd,0995X
Gloucester City Council,23UE,Rehousing,CH111,Basic Pay - Temporary Staff,2751,TEMPORARY STAFF,02/09/2014,389697,703,NET,Building Recruitment Company Ltd,55385E
Gloucester City Council,23UE,Retail Market - Landlord,HM300,Window Cleaning,3610,Monthly Window Clean July 2014,02/09/2014,389503,140,NET,Cornwall Cleaning Services,14050A
Gloucester City Council,23UE,Summer Festival,LT300,Other Minor Supplies Services,5590,Medals,02/09/2014,389506,100,NET,Macron Store Gloucester,12060S
Gloucester City Council,23UE,Summer Festival,LT300,Security Services Fees,5351,Security Staff & Event Stewards,02/09/2014,389537,3408.75,NET,Nsgl Ltd,12539E
Gloucester City Council,23UE,Asset Management,RS300,Basic Pay - Temporary Staff,2751,TEMPORARY STAFF,03/09/2014,389512,1220.05,NET,Hays Specialist Recruitment Ltd,55516P
Gloucester City Council,23UE,REDACTED,REDACTED,REDACTED,REDACTED,REDACTED,03/09/2014,REDACTED,67.5,NET,REDACTED,REDACTED
Gloucester City Council,23UE,Celebratory Lights,LT302,Christmas Lights,5024,Charges 2013/14,03/09/2014,389497,1108.6,NET,Npower Ltd,02663W
Gloucester City Council,23UE,Civil Parking Enforcement,PT741,Basic Pay - Temporary Staff,2751,TEMPORARY STAFF,03/09/2014,389693,2400,NET,Unity Recruitment,14857S
Gloucester City Council,23UE,Crematorium,HC200,Oper Leases - Equipment,5029,Refuse Sacks,03/09/2014,389686,62.7,NET,Safpro Industrial Supply Co,39190W
Gloucester City Council,23UE,Director Resources,MR102,Fees For Services Received,5350,Professional Services,03/09/2014,387903,8560.22,NET,Wragge & Co Llp,06590J
Gloucester City Council,23UE,Director Resources,MR102,Fees For Services Received,5350,Professional Services June 14,03/09/2014,387902,273,NET,Wragge & Co Llp,06590J
Gloucester City Council,23UE,REDACTED,REDACTED,REDACTED,REDACTED,REDACTED,03/09/2014,REDACTED,50,NET,REDACTED,REDACTED
Gloucester City Council,23UE,Homelessness,CH120,Basic Pay - Temporary Staff,2751,TEMPORARY STAFF,03/09/2014,389504,768.27,NET,James Andrews Recruitment Solutions,13636W
Gloucester City Council,23UE,Homelessness,CH120,Basic Pay - Temporary Staff,2751,TEMPORARY STAFF,03/09/2014,389652,795.13,NET,James Andrews Recruitment Solutions,13636W
Gloucester City Council,23UE,Investment Property,RB500,General Repair/Maint Buildings,3000,"Engineer, Crem 16/07/2014",03/09/2014,389502,40,NET,Adt Fire & Security Plc,54086D
Gloucester City Council,23UE,Legal Services,RS200,Agency Fees,9105,TEMPORARY STAFF,03/09/2014,389518,637.63,NET,Sellick Partnership Group Ltd,11057C
Gloucester City Council,23UE,Legal Services,RS200,Agency Fees,9105,TEMPORARY STAFF,03/09/2014,389642,657.58,NET,Sellick Partnership Group Ltd,11057C
Gloucester City Council,23UE,Legal Services,RS200,Agency Fees,9105,TEMPORARY STAFF,03/09/2014,389510,490.59,NET,Premiere Employment Ltd,55468Z
Gloucester City Council,23UE,Legal Services,RS200,Agency Fees,9105,TEMPORARY STAFF,03/09/2014,389641,414.86,NET,Premiere Employment Ltd,55468Z
Gloucester City Council,23UE,Legal Services,RS200,Asp Agency Staff Costs,2985,TEMPORARY STAFF,03/09/2014,389643,1715,NET,Michael Page International Recruitment Ltd,06601P
Gloucester City Council,23UE,REDACTED,REDACTED,REDACTED,REDACTED,REDACTED,03/09/2014,REDACTED,3600,CAP,REDACTED,REDACTED
Gloucester City Council,23UE,Summer Festival,LT300,Sale Of Goods And Services,9230,Refund for Summer Sound 19/07/2014,03/09/2014,389804,90,NET,Mmm! Coffee Ltd,14093F
Gloucester City Council,23UE,REDACTED,REDACTED,REDACTED,REDACTED,REDACTED,04/09/2014,REDACTED,110,NET,REDACTED,REDACTED
Gloucester City Council,23UE,Business Transformation & Tech,RT700,Computer Software Maintenance,5427,NBS SOFTWARE,04/09/2014,389902,1340,NET,Riba Enterprises,09988U
Gloucester City Council,23UE,Business Transformation & Tech,RT700,Computer Software Maintenance,5427,XPRESS SYSTEM,04/09/2014,389862,13500,NET,Xpress Software Solutions,13533H
Gloucester City Council,23UE,Cemeteries,HC300,Purch Vehicles/M. Plant <5000,4000,HARDWARE,04/09/2014,389885,109.36,NET,Spaldings,48759Y
Gloucester City Council,23UE,Cemeteries,HC300,Purch Vehicles/M. Plant <5000,4000,SPROCKET,04/09/2014,389884,16.07,NET,Spaldings,48759Y
Gloucester City Council,23UE,Cems/Crems Admin,HC100,Office Equipment <5000,5010,CARTRIDGE,04/09/2014,389844,207.84,NET,Office Star Group Ltd,55874H
Gloucester City Council,23UE,Civica Admin Charges,RT105,Postages,5400,Civica's Post 04/08 - 15/08 2014,04/09/2014,389538,1322.45,NET,Royal Mail S.Wales & South West,35830S
Gloucester City Council,23UE,Contact Centre,RB300,Basic Pay -Admin /Prof Staff,2601,TEMPORARY STAFF,04/09/2014,389860,671,NET,Venn Group Ltd,04339P
Gloucester City Council,23UE,Contact Centre,RB300,Basic Pay -Admin /Prof Staff,2601,TEMPORARY STAFF,04/09/2014,389861,511.5,NET,Venn Group Ltd,04339P
Gloucester City Council,23UE,Council Streetcare Team,HI101,Window Cleaning,3610,AUG 2014,04/09/2014,389827,130,NET,Poles Apart Window Cleaning,11636R
Gloucester City Council,23UE,Council Streetcare Team,HI101,Window Cleaning,3610,JULY 2014,04/09/2014,389828,130,NET,Poles Apart Window Cleaning,11636R
Gloucester City Council,23UE,Countryside Unit,LP201,Major R And M - Vehicles,4010,PARTS,04/09/2014,389843,190.81,NET,Ryetec Industrial Equipment Ltd,13772L
Gloucester City Council,23UE,Countryside Unit,LP201,Routine R And M - Vehicles,4011,PARTS,04/09/2014,389843,45.65,NET,Ryetec Industrial Equipment Ltd,13772L
Gloucester City Council,23UE,Crematorium,HC200,Equipment For Sale,5050,Teak bench with central panel,04/09/2014,389630,445,NET,Codec Facilities Ltd,14338Y
Gloucester City Council,23UE,Docks Complex - Catering Servs,RB110,Catering Provisions -Food,5110,FOOD,04/09/2014,389912,309.72,NET,3663,55585U
Gloucester City Council,23UE,Economic Development,FP300,Other Minor Supplies Services,5590,1/4 page colour 12/2/14,04/09/2014,379333,195,NET,Expo Management Ltd,14164H
Gloucester City Council,23UE,Economic Development,FP300,Other Minor Supplies Services,5590,April 2014 Issue,04/09/2014,382614,120,NET,Gtw Media Ltd,14516Y
Gloucester City Council,23UE,Economic Development,FP300,Other Minor Supplies Services,5590,PRINTING,04/09/2014,389881,475,NET,Severnprint Ltd,49030C
Gloucester City Council,23UE,Folk Museum Catering,LM211,Other Catering Provisions,5112,DRINK,04/09/2014,389856,260.53,NET,Ukv Solutions Ltd,14864V
Gloucester City Council,23UE,Guildhall Events,LA200,Advertising And Publicity,5702,SIGN,04/09/2014,389830,260,NET,W23 Group (Worthing Sign Company),14974L
Gloucester City Council,23UE,Guildhall Events,LA200,Advertising And Publicity,5702,ONLINE CAMPAIGN,04/09/2014,389833,1400,NET,Cds Publications,59644P
Gloucester City Council,23UE,REDACTED,REDACTED,REDACTED,REDACTED,REDACTED,04/09/2014,REDACTED,100,NET,REDACTED,REDACTED
Gloucester City Council,23UE,REDACTED,REDACTED,REDACTED,REDACTED,REDACTED,04/09/2014,REDACTED,250,NET,REDACTED,REDACTED
Gloucester City Council,23UE,REDACTED,REDACTED,REDACTED,REDACTED,REDACTED,04/09/2014,REDACTED,1350,NET,REDACTED,REDACTED
Gloucester City Council,23UE,REDACTED,REDACTED,REDACTED,REDACTED,REDACTED,04/09/2014,REDACTED,50,NET,REDACTED,REDACTED
Gloucester City Council,23UE,REDACTED,REDACTED,REDACTED,REDACTED,REDACTED,04/09/2014,REDACTED,390,NET,REDACTED,REDACTED
Gloucester City Council,23UE,REDACTED,REDACTED,REDACTED,REDACTED,REDACTED,04/09/2014,REDACTED,400,NET,REDACTED,REDACTED
Gloucester City Council,23UE,Hempsted Market/Car Boot,HM234,Maint Of Grounds - General,3030,TOPPING,04/09/2014,389888,242,NET,REDACTED,REDACTED
Gloucester City Council,23UE,Hempsted Market/Car Boot,HM234,Sewerage And Environ Charges,3402,HEMPSTED,04/09/2014,389875,448.2,NET,Abbey Loos Limited,10787B
Gloucester City Council,23UE,Homelessness,CH120,Fees For Services Received,5350,medical report,04/09/2014,389839,20.5,NET,Gloucester City Health Centre,02093U
Gloucester City Council,23UE,Homelessness,CH120,Fees For Services Received,5350,medical report,04/09/2014,389851,20.5,NET,Kingsholm Surgery,11948S
Gloucester City Council,23UE,Homelessness,CH120,Fees For Services Received,5350,medical report,04/09/2014,389852,20.5,NET,Hadwen Medical Practice,59727U
Gloucester City Council,23UE,Homelessness,CH120,Fees For Services Received,5350,medical report,04/09/2014,389840,20.5,NET,Dr P Lush & Partners,05680S
Gloucester City Council,23UE,Homelessness,CH120,Removal And Storage Fees,5513,storage for client,04/09/2014,389854,156.43,NET,Advanced Removals & Storage Ltd,57142R
Gloucester City Council,23UE,Homelessness,CH120,Removal And Storage Fees,5513,storage for client,04/09/2014,389853,262.29,NET,Advanced Removals & Storage Ltd,57142R
Gloucester City Council,23UE,Homelessness,CH120,Removal And Storage Fees,5513,storage for client,04/09/2014,389836,11.57,NET,Advanced Removals & Storage Ltd,57142R
Gloucester City Council,23UE,Homelessness,CH120,Removal And Storage Fees,5513,storage for client,04/09/2014,389838,225,NET,Advanced Removals & Storage Ltd,57142R
Gloucester City Council,23UE,REDACTED,REDACTED,REDACTED,REDACTED,REDACTED,04/09/2014,REDACTED,484.6,NET,REDACTED,REDACTED
Gloucester City Council,23UE,REDACTED,REDACTED,REDACTED,REDACTED,REDACTED,04/09/2014,REDACTED,500,NET,REDACTED,REDACTED
Gloucester City Council,23UE,Homelessness Prevention,CH122,Fees For Services Received,5350,medical report,04/09/2014,389837,20.5,NET,Gloucester Health Access Centre,11611H
Gloucester City Council,23UE,Meet & Greet,FP309,Advertising And Publicity,5702,ADVERT,04/09/2014,389877,225,NET,Expo Management Ltd,14164H
Gloucester City Council,23UE,Meet & Greet,FP309,Other Minor Supplies Services,5590,ADVERT MAY 2014,04/09/2014,383724,380,NET,Travel Gbi,14284W
Gloucester City Council,23UE,Nms Contract,HI102,Operational Materials,5070,PURPLE SACKS,04/09/2014,389897,953,NET,Polystar Plastics Ltd,01120C
Gloucester City Council,23UE,Registration Of Electors,RS400,Fees For Services Received,5350,ROOM HIRE,04/09/2014,389909,131.14,NET,Linden Primary School,01427W
Gloucester City Council,23UE,Registration Of Electors,RS400,Postages,5400,ACCT 0870585031 JULY 2014,04/09/2014,389911,6830.34,NET,Royal Mail S.Wales & South West,35830S
Gloucester City Council,23UE,Registration Of Electors,RS400,Publications,5060,PUBLICATION,04/09/2014,389908,158,NET,Thomson Reuters,43110M
Gloucester City Council,23UE,Rehousing,CH111,Fees For Services Received,5350,medical report,04/09/2014,389841,20.5,NET,Dr P Lush & Partners,05680S
Gloucester City Council,23UE,Retail Market - Landlord,HM300,Operational Equipment <5000,5012,DIGITAL RECORDER,04/09/2014,389825,1100,NET,R Creed T/A Creed Security,14710A
Gloucester City Council,23UE,Retail Market - Landlord,HM300,Operational Equipment <5000,5012,AUG 2014 HIRE,04/09/2014,389899,280.56,NET,System Rental Uk Ltd,03239E
Gloucester City Council,23UE,Retail Market - Landlord,HM300,Sewerage And Environ Charges,3402,FLY SPRAY,04/09/2014,389891,38.77,NET,Yate Supplies,12850B
Gloucester City Council,23UE,Retail Market - Landlord,HM300,Window Cleaning,3610,WINDOWS AUG 2014,04/09/2014,389874,140,NET,Cornwall Cleaning Services,14050A
Gloucester City Council,23UE,Stationery Services,RS150,Stationery,5302,ROLLS,04/09/2014,389869,107,NET,Paperloop Consumables Ltd,14594B
Gloucester City Council,23UE,Tic Trading,LT110,Materials For Sale,5080,GOODS FOR RESALE,04/09/2014,389866,209,NET,Farrahs Of Harrogate,14360F
Gloucester City Council,23UE,Tic Trading,LT110,Publications For Sale,5064,MAPS,04/09/2014,389865,90,NET,Cotswold District Council,49331J
Gloucester City Council,23UE,Tourism Marketing,LT100,Operational Equipment <5000,5012,A BOARD,04/09/2014,389867,98,NET,Robert Hall Business Equipment Ltd,19925B
Gloucester City Council,23UE,Tourism Marketing,LT100,Printing,5300,SIGNS,04/09/2014,389876,56.67,NET,Alpen Signs Ltd,14970V
Gloucester City Council,23UE,Allotments,HI104,Fees For Services Received,5350,WILLOW WAY,05/09/2014,389858,70,NET,Gl Communities,09535X
Gloucester City Council,23UE,Blackfriars,LA609,General Repair/Maint Buildings,3000,LAMP,05/09/2014,389900,291.65,NET,Ryness & Wholesale Lighting,12230R
Gloucester City Council,23UE,City Museum And Art Gallery,LM200,Misc Fixtures And Fittings,3500,display sign goods,05/09/2014,388910,83.01,NET,3d Displays Ltd,57544P
Gloucester City Council,23UE,REDACTED,REDACTED,REDACTED,REDACTED,REDACTED,05/09/2014,REDACTED,35,NET,REDACTED,REDACTED
Gloucester City Council,23UE,REDACTED,REDACTED,REDACTED,REDACTED,REDACTED,05/09/2014,REDACTED,172,NET,REDACTED,REDACTED
Gloucester City Council,23UE,Play Area Refurbishment,LY071,Contract Payments,0020,SIGN,05/09/2014,389882,112.05,CAP,Severn Signs Ltd,49841D
Gloucester City Council,23UE,Printing,RP103,Printing,5300,PRINTING AUG 2014,05/09/2014,389903,590,NET,Alpha Colour Printers Ltd,00945B
Gloucester City Council,23UE,Rugby World Cup,LT450,Consultants Fees,5349,Inspection of lighting columns,05/09/2014,389367,1345,NET,Kiwa Ltd,14951Z
Gloucester City Council,23UE,Safer Stronger Communities,FP841,Other Minor Supplies Services,5590,CCTV Panels,05/09/2014,389687,105.5,NET,Estate Signs & Print,13634A
Gloucester City Council,23UE,REDACTED,REDACTED,REDACTED,REDACTED,REDACTED,05/09/2014,REDACTED,385,NET,REDACTED,REDACTED
Gloucester City Council,23UE,Civica Contract Revs & Bens,RT250,Contracted Services,6970,OCT 2014,08/09/2014,389845,138572.7,NET,Civica Uk Ltd,10841X
Gloucester City Council,23UE,Civil Parking Enforcement,PT741,On Street Parking Charges,6550,Parking Income July 2014,08/09/2014,389654,35838,NET,Gloucestershire County Council,18650D
Gloucester City Council,23UE,Civil Parking Enforcement,PT741,On Street Parking Charges,6550,Parking Income June 2014,08/09/2014,389653,37829.86,NET,Gloucestershire County Council,18650D
Gloucester City Council,23UE,Client Revs & Bens Contract,RT240,Bailiffs Fees,5368,VAT ONLY INVOICE,08/09/2014,389892,0,NET,Bristow & Sutor,05450M
Gloucester City Council,23UE,Client Revs & Bens Contract,RT240,Bailiffs Fees,5368,VAT ONLY INVOICE,08/09/2014,389894,0,NET,Bristow & Sutor,05450M
Gloucester City Council,23UE,Crematorium,HC200,Equipment For Sale,5050,BENCH,08/09/2014,389896,445,NET,Codec Facilities Ltd,14338Y
Gloucester City Council,23UE,Gloucester Guildhall,LA100,Security Services Fees,5351,VAT ONLY INVOICE,08/09/2014,389887,0,NET,Gloucester City Safe,14709J
Gloucester City Council,23UE,Human Resources,EH100,Fees For Services Received,5350,DBS Charge July 2014,08/09/2014,389347,69,NET,Gloucestershire County Council,18650D
Gloucester City Council,23UE,Human Resources,EH100,Fees For Services Received,5350,DBTS Charges June 14,08/09/2014,387763,384,NET,Gloucestershire County Council,18650D
Gloucester City Council,23UE,Investment Property,RB500,Repair/Maint Of Fixed Plant,3006,"Rear kitchen door push pad, 30/07/2014",08/09/2014,389528,146.4,NET,Gloucester Locksmiths,18160C
Gloucester City Council,23UE,Kings Quarter,RY146,Contract Payments,0020,Removal of Heras Hoarding Panels,08/09/2014,390190,455,CAP,Anderson Civil Engineering Uk Ltd,09083D
Gloucester City Council,23UE,Legal Services,RS200,Agency Fees,9105,TEMPORARY STAFF,08/09/2014,389905,291.68,NET,Venn Group Ltd,04339P
Gloucester City Council,23UE,Marchants,LT108,Materials For Sale,5080,JULY 2014,08/09/2014,389879,5477.5,NET,Marchants Coaches Ltd,48151Y
Gloucester City Council,23UE,Shopmobility,PE200,Cleaning Materials,3600,CLEANING GOODS,08/09/2014,389864,35.69,NET,Core Hygiene Ltd,03885P
Gloucester City Council,23UE,Shopmobility,PE200,Maintenance Of Equipment,5030,REPAIRS,08/09/2014,389870,338,NET,Disabled Care & Mobility,12675V
Gloucester City Council,23UE,Swrda Asset Transfer,RY184,Capital General Repairs & Main,0013,Barbican Car Park Imporvements,08/09/2014,390146,1623.42,CAP,Anderson Civil Engineering Uk Ltd,09083D
Gloucester City Council,23UE,Utilities,PT502,Electricity Supply,3110,19 LADYBELLEGATE ST,08/09/2014,389849,38.9,NET,British Gas Business,08301C
Gloucester City Council,23UE,Utilities,PT502,Electricity Supply,3110,ROBINSWOOD HILL,08/09/2014,389770,256.38,NET,Npower,03929V
Gloucester City Council,23UE,Utilities,PT502,Gas Supply,3100,UTILITIES TO AUG 2014,08/09/2014,389769,4098.67,NET,West Mercia Energy,11669Z
Gloucester City Council,23UE,Blackfriars Catering,LA220,Catering Provisions -Liquor,5111,Liquor,09/09/2014,390134,265.12,NET,Cellar Supplies Cheltenham Ltd,01563L
Gloucester City Council,23UE,Business Grants,GY007,Contract Payments,0020,Flexible Business Support Grant,09/09/2014,390045,500,CAP,Cafe On The Cut,14971T
Gloucester City Council,23UE,Business Grants,GY007,Contract Payments,0020,Growth Accelerator Grant,09/09/2014,390189,1500,CAP,E G Carter & Co Ltd,09262B
Gloucester City Council,23UE,Cemeteries,HC300,Purch Vehicles/M. Plant <5000,4000,Twnpk Impact,09/09/2014,390191,164.99,NET,Machine Mart,56123E
Gloucester City Council,23UE,Cemeteries,HC300,Tyres,4014,Tyre Repair,09/09/2014,390033,24.75,NET,A T S Euromaster Ltd,01860B
Gloucester City Council,23UE,City Museum Catering,LM202,Catering Provisions -Food,5110,Food,09/09/2014,390154,140.27,NET,Woodward Foodservice,10714F
Gloucester City Council,23UE,City Museum Catering,LM202,Catering Provisions -Food,5110,Food,09/09/2014,390155,61.09,NET,Woodward Foodservice,10714F
Gloucester City Council,23UE,Countryside Unit,LP201,Oil,4013,Hydraulic Oil,09/09/2014,390128,42.2,NET,Hobbs Bros Ltd,05942J
Gloucester City Council,23UE,Countryside Unit,LP201,Routine R And M - Vehicles,4011,Cogged Wedge Belt,09/09/2014,390130,77.31,NET,A C Belting Ltd,00250X
Gloucester City Council,23UE,Crematorium,HC200,Book Of Memory,5055,Site Visit 15/08/2014,09/09/2014,390032,113.14,NET,Hilton Cabinet Co Ltd,21910A
Gloucester City Council,23UE,Disabled Facilities Grants,CY013,Disabled Facility Grants,0074,MDF5079,09/09/2014,390144,5322,CAP,Beard & Tandy,03160V
Gloucester City Council,23UE,Disabled Facilities Grants,CY013,Disabled Facility Grants,0074,MDF5023,09/09/2014,390145,1059.35,CAP,Beard & Tandy,03160V
Gloucester City Council,23UE,Folk Museum,LM210,Security Services Fees,5351,Alarm Activation Call Out,09/09/2014,390028,77,NET,Glevum Security Ltd,03249B
Gloucester City Council,23UE,General Drainage Works,PY241,Contract Payments,0020,Porchester Road,09/09/2014,390040,1263.31,CAP,Uk Flood Barriers Ltd,14321S
Gloucester City Council,23UE,Guildhall Bar And Caf�,LA210,Catering Provisions -Food,5110,Food,09/09/2014,390133,36,NET,Taynton Farm Foods,09653F
Gloucester City Council,23UE,Guildhall Bar And Caf�,LA210,Catering Provisions -Food,5110,Food,09/09/2014,390152,71.92,NET,Woodward Foodservice,10714F
Gloucester City Council,23UE,Guildhall Bar And Caf�,LA210,Catering Provisions -Food,5110,Food,09/09/2014,390153,131.56,NET,Woodward Foodservice,10714F
Gloucester City Council,23UE,Guildhall Bar And Caf�,LA210,Catering Provisions -Food,5110,Food,09/09/2014,390156,4.96,NET,Total Produce Gloucester,12645E
Gloucester City Council,23UE,Guildhall Bar And Caf�,LA210,Catering Provisions -Food,5110,Food,09/09/2014,390187,119.43,NET,Woodward Foodservice,10714F
Gloucester City Council,23UE,Guildhall Bar And Caf�,LA210,Catering Provisions -Food,5110,Milk,09/09/2014,390157,4.96,NET,Total Produce Gloucester,12645E
Gloucester City Council,23UE,Guildhall Bar And Caf�,LA210,Catering Provisions -Liquor,5111,Liquor,09/09/2014,390132,1340.2,NET,Cellar Supplies Cheltenham Ltd,01563L
Gloucester City Council,23UE,REDACTED,REDACTED,REDACTED,REDACTED,REDACTED,09/09/2014,REDACTED,1175.12,NET,REDACTED,REDACTED
Gloucester City Council,23UE,REDACTED,REDACTED,REDACTED,REDACTED,REDACTED,09/09/2014,REDACTED,240,NET,REDACTED,REDACTED
Gloucester City Council,23UE,Hackney Carriages,HL100,Fees For Services Received,5350,Years Subscription Oct 13- Sept 14,09/09/2014,390034,20,NET,Private Hire & Taxi Monthly,02715C
Gloucester City Council,23UE,Hempsted Market/Car Boot,HM234,Security Services Fees,5351,"Security Staff, Hempsted Meadow",09/09/2014,390150,1641.6,NET,Nsgl Ltd,12539E
Gloucester City Council,23UE,Homelessness,CH120,Fees For Services Received,5350,Medical Report,09/09/2014,390030,20.5,NET,Dr P Lush & Partners,05680S
Gloucester City Council,23UE,Homelessness,CH120,Removal And Storage Fees,5513,collection of furniture,09/09/2014,390031,120,NET,Advanced Removals & Storage Ltd,57142R
Gloucester City Council,23UE,Investment Property,RB500,Lift Maintenance,3051,"Engineer 04/08/2014, Guildhall",09/09/2014,390142,95.72,NET,Pickerings Europe Ltd*,58816U
Gloucester City Council,23UE,National Express,LT105,Materials For Sale,5080,NATIONAL EXPRESS August 2014,09/09/2014,390151,15807.3,NET,National Express Ltd,31455K
Gloucester City Council,23UE,National Express,LT105,Sale Of Goods And Services,9230,NATIONAL EXPRESS August 2014,09/09/2014,390151,-1525.93,NET,National Express Ltd,31455K
Gloucester City Council,23UE,Registration Of Electors,RS400,Postages,5400,Business Mail 25/07/2014,09/09/2014,389910,17822.47,NET,Royal Mail S.Wales & South West,35830S
Gloucester City Council,23UE,Retail Market - Landlord,HM300,Trade Refuse Collection,3630,Food Waste,09/09/2014,390110,120,NET,B & S Pointon Ltd,06253G
Gloucester City Council,23UE,Treasury Management,VR110,Brokerage Fees,5951,"27/08/2014, 10302-1810628-1U",09/09/2014,390138,345.21,NET,Martin Brokers (Uk) Plc,51416J
Gloucester City Council,23UE,Business Support,PT250,Fuel,4012,Fuel,10/09/2014,390018,306.2,NET,Allstar Business Solutions Ltd (Arval),06594A
Gloucester City Council,23UE,Civil Parking Enforcement,PT741,Computer Software Maintenance,5427,DVLA Enquiry Service,10/09/2014,390015,65.4,NET,Chipside Ltd,06535T
Gloucester City Council,23UE,REDACTED,REDACTED,REDACTED,REDACTED,REDACTED,10/09/2014,REDACTED,100,NET,REDACTED,REDACTED
Gloucester City Council,23UE,Client Revs & Bens Contract,RT240,Bailiffs Fees,5368,VAT on Statutory Fees,10/09/2014,389893,505.26,NET,Bristow & Sutor,05450M
Gloucester City Council,23UE,Community Safety Projects,FP500,Basic Pay - Temporary Staff,2751,TEMPORARY STAFF,10/09/2014,390020,540.2,NET,Travail Employment Ltd,49371W
Gloucester City Council,23UE,Community Safety Projects,FP500,Basic Pay - Temporary Staff,2751,TEMPORARY STAFF,10/09/2014,390021,591.3,NET,Travail Employment Ltd,49371W
Gloucester City Council,23UE,Contact Centre,RB300,Basic Pay -Admin /Prof Staff,2601,TEMPORARY STAFF,10/09/2014,386726,440.8,NET,One To One Recruitment,04752H
Gloucester City Council,23UE,Crematorium,HC200,Memorial Plaques,5053,Plaques,10/09/2014,389883,132,NET,Steel & Stone (York),57204U
Gloucester City Council,23UE,Crematorium,HC200,Repair/Maint Of Fixed Plant,3006,9 Monthly Service Visit,10/09/2014,389901,1167.67,NET,Facultatieve Technologies Ltd,51210H
Gloucester City Council,23UE,Docks Complex - Catering Servs,RB110,Catering Provisions -Food,5110,Food,10/09/2014,390007,274.1,NET,3663,55585U
Gloucester City Council,23UE,Financial Services,RT200,Publications,5060,FRC preparers levy 2014/15,10/09/2014,388754,513,NET,The Financial Reporting Council,09736A
Gloucester City Council,23UE,REDACTED,REDACTED,REDACTED,REDACTED,REDACTED,10/09/2014,REDACTED,900,NET,REDACTED,REDACTED
Gloucester City Council,23UE,REDACTED,REDACTED,REDACTED,REDACTED,REDACTED,10/09/2014,REDACTED,3522.34,NET,REDACTED,REDACTED
Gloucester City Council,23UE,Herbert Reception Upgrade,RY201,Capital General Repairs & Main,0013,Blackfriars Priory Works,10/09/2014,389904,3428,CAP,Ajr Electrical Services,13525G
Gloucester City Council,23UE,REDACTED,REDACTED,REDACTED,REDACTED,REDACTED,10/09/2014,REDACTED,484.6,NET,REDACTED,REDACTED
Gloucester City Council,23UE,REDACTED,REDACTED,REDACTED,REDACTED,REDACTED,10/09/2014,REDACTED,484.6,NET,REDACTED,REDACTED
Gloucester City Council,23UE,REDACTED,REDACTED,REDACTED,REDACTED,REDACTED,10/09/2014,REDACTED,364.6,NET,REDACTED,REDACTED
Gloucester City Council,23UE,Homelessness,CH120,Rent In Advance,5516,Ria & Deposit,10/09/2014,390253,484.6,NET,Alex Clark Lettings,13439A
Gloucester City Council,23UE,REDACTED,REDACTED,REDACTED,REDACTED,REDACTED,10/09/2014,REDACTED,500,NET,REDACTED,REDACTED
Gloucester City Council,23UE,REDACTED,REDACTED,REDACTED,REDACTED,REDACTED,10/09/2014,REDACTED,500,NET,REDACTED,REDACTED
Gloucester City Council,23UE,REDACTED,REDACTED,REDACTED,REDACTED,REDACTED,10/09/2014,REDACTED,500,NET,REDACTED,REDACTED
Gloucester City Council,23UE,Homelessness Prevention,CH122,Fees For Services Received,5350,Ria & Deposit,10/09/2014,390253,525,NET,Alex Clark Lettings,13439A
Gloucester City Council,23UE,Internal Audit,RT300,Basic Pay - Temporary Staff,2751,TEMPORARY STAFF,10/09/2014,389523,1073,NET,Robert Half Ltd,03959K
Gloucester City Council,23UE,Internal Audit,RT300,Basic Pay - Temporary Staff,2751,TEMPORARY STAFF,10/09/2014,389695,870,NET,Robert Half Ltd,03959K
Gloucester City Council,23UE,Licences,HE510,Reimbursements,5591,"Refund of fee, withdrawing application",10/09/2014,390254,23,NET,John Gaunt & Partners Solicitors,04310R
Gloucester City Council,23UE,REDACTED,REDACTED,REDACTED,REDACTED,REDACTED,10/09/2014,REDACTED,2,NET,REDACTED,REDACTED
Gloucester City Council,23UE,Registration Of Electors,RS400,Postages,5400,Post,10/09/2014,383398,0.8,NET,Royal Mail S.Wales & South West,35830S
Gloucester City Council,23UE,Retail Market - Landlord,HM300,Operational Equipment <5000,5012,Market Invoice 23/10/13 - 24/07/14,10/09/2014,390006,125.56,NET,Arp Trading,09751H
Gloucester City Council,23UE,Stationery Services,RS150,Stationery,5302,Stationary,10/09/2014,389873,2.5,NET,Lyreco Uk Ltd,11746G
Gloucester City Council,23UE,Summer Festival,LT300,Fees For Services Received,5350,Security Panels,10/09/2014,390012,1840,NET,Show Services Group Ltd,56329F
Gloucester City Council,23UE,Superbreak,LT104,Materials For Sale,5080,"Royal National Hotel, 24/09/2014",10/09/2014,390024,111,NET,Superbreak Mini Holidays,00712D
Gloucester City Council,23UE,Superbreak,LT104,Sale Of Goods And Services,9230,"Royal National Hotel, 24/09/2014",10/09/2014,390024,-9.25,NET,Superbreak Mini Holidays,00712D
Gloucester City Council,23UE,Tourism Marketing,LT100,Window Cleaning,3610,Window Cleaning Weekly,10/09/2014,389878,24,NET,Interserve Fs (Uk) Limited,07778C
Gloucester City Council,23UE,Aspire Admin Charges,LC105,Contracted Services,6970,management fees Sept14,11/09/2014,390250,71458.92,NET,Aspire Sports & Cultural Trust,08135V
Gloucester City Council,23UE,Cctv Revenue Budget,FP501,Security Equipment Serv/Repair,3038,Install DVR Replacement,11/09/2014,390109,920,NET,Eurolink Security & Technology Group,05166M
Gloucester City Council,23UE,Civil Parking Enforcement,PT741,Basic Pay - Temporary Staff,2751,TEMPORARY STAFF,11/09/2014,390011,2400,NET,Unity Recruitment,14857S
Gloucester City Council,23UE,Civil Parking Enforcement,PT741,Basic Pay - Temporary Staff,2751,TEMPORARY STAFF,11/09/2014,390148,1920,NET,Unity Recruitment,14857S
Gloucester City Council,23UE,Eastgate Viewing Chamber,LY100,Contract Payments,0020,"Eastgate Chamber Project, charges",11/09/2014,390014,3262,CAP,Geldards Llp,08628P
Gloucester City Council,23UE,Financial Services,RT200,Computer Software Maintenance,5427,Expenses Recharges,11/09/2014,389648,177.76,NET,Advanced Business Solutions,06072N
Gloucester City Council,23UE,General Drainage Works,PY241,Contract Payments,0020,Install Aco Drains,11/09/2014,389848,2698.67,CAP,Mr M G Horton T/A H&T Property Maintenance,09210X
Gloucester City Council,23UE,General Drainage Works,PY241,Contract Payments,0020,Install Drainage Works,11/09/2014,389850,4351.52,CAP,Mr M G Horton T/A H&T Property Maintenance,09210X
Gloucester City Council,23UE,Guildhall Bar And Caf�,LA210,Catering Provisions -Liquor,5111,GAS,11/09/2014,389826,18.57,NET,Boc Ltd,59172L
Gloucester City Council,23UE,Homelessness,CH120,Basic Pay - Temporary Staff,2751,TEMPORARY STAFF,11/09/2014,390042,676.94,NET,James Andrews Recruitment Solutions,13636W
Gloucester City Council,23UE,Homelessness,CH120,Board And Lodging,5515,"July 2014, Homeless Voids",11/09/2014,390041,376.8,NET,Gloucester City Homes,05244T
Gloucester City Council,23UE,REDACTED,REDACTED,REDACTED,REDACTED,REDACTED,11/09/2014,REDACTED,258.48,NET,REDACTED,REDACTED
Gloucester City Council,23UE,Human Resources,EH100,Fees For Services Received,5350,OH Services June 2014,11/09/2014,389519,859.18,NET,Industrial Medical & Safety Services Ltd,10668L
Gloucester City Council,23UE,Investment Property,RB500,Advertising And Publicity,5702,Implementation of brand,11/09/2014,390101,250,NET,Litchfield Morris,14305P
Gloucester City Council,23UE,Rehousing,CH111,Basic Pay - Temporary Staff,2751,CREDITED ON IN-36726-1,11/09/2014,389414,1285.5,NET,Building Recruitment Company Ltd,55385E
Gloucester City Council,23UE,Rehousing,CH111,Basic Pay - Temporary Staff,2751,TEMPORARY STAFF,11/09/2014,390019,627,NET,Building Recruitment Company Ltd,55385E
Gloucester City Council,23UE,Aspire Admin Charges,LC105,Fees For Services Received,5350,AUG14 GCC STAFF MEMBERSHIP,12/09/2014,390288,957,NET,Aspire Sports & Cultural Trust,08135V
Gloucester City Council,23UE,Aspire Admin Charges,LC105,Fees For Services Received,5350,JULY14 GCC STAFF MEMBERSHIP,12/09/2014,390289,986,NET,Aspire Sports & Cultural Trust,08135V
Gloucester City Council,23UE,Cemeteries,HC300,Operational Materials,5070,Bush Roses,12/09/2014,390127,343.53,NET,Norton Plantaria,53679C
Gloucester City Council,23UE,City Museum And Art Gallery,LM200,Publications For Sale,5064,Minerals & Fossils,12/09/2014,389258,719.89,NET,Moussa Direct Ltd,12527M
Gloucester City Council,23UE,Civica Contract Revs & Bens,RT250,Contracted Services,6970,CIVICA UK LTD,12/09/2014,390038,138572.7,NET,Civica Uk Ltd,10841X
Gloucester City Council,23UE,Civica Contract Revs & Bens,RT250,Contracted Services,6970,CIVICA UK LTD,12/09/2014,390039,138572.7,NET,Civica Uk Ltd,10841X
Gloucester City Council,23UE,Countryside Unit,LP201,Major R And M - Vehicles,4010,Bearing,12/09/2014,390126,33.33,NET,A C Belting Ltd,00250X
Gloucester City Council,23UE,Development Management,PT200,Microfilming / Cd-Rom Storage,5330,TRANSMEDIA TECHNOLOGY LTD,12/09/2014,389520,22,NET,Transmedia Technology Ltd,08635T
Gloucester City Council,23UE,Docks Complex - Services,RB100,General Repair/Maint Buildings,3000,Move Seachange Controller,12/09/2014,389270,264.53,NET,Scs Installations Ltd,10383G
Gloucester City Council,23UE,Gf Lifelinks,CH180,Contracted Services,6970,September 2014 Management Fee,12/09/2014,390037,5270.83,NET,Gloucester City Homes,05244T
Gloucester City Council,23UE,REDACTED,REDACTED,REDACTED,REDACTED,REDACTED,12/09/2014,REDACTED,741.16,NET,REDACTED,REDACTED
Gloucester City Council,23UE,REDACTED,REDACTED,REDACTED,REDACTED,REDACTED,12/09/2014,REDACTED,1000,NET,REDACTED,REDACTED
Gloucester City Council,23UE,REDACTED,REDACTED,REDACTED,REDACTED,REDACTED,12/09/2014,REDACTED,280,NET,REDACTED,REDACTED
Gloucester City Council,23UE,Retail Market - Landlord,HM300,Cleaning Materials,3600,CLEANING GOODS,12/09/2014,389863,236.2,NET,Core Hygiene Ltd,03885P
Gloucester City Council,23UE,Retail Market - Landlord,HM300,Operational Equipment <5000,5012,Lamps & Tubes,12/09/2014,386062,301.41,NET,City Electrical Factors*,09325C
Gloucester City Council,23UE,Retail Market - Landlord,HM300,Operational Equipment <5000,5012,Recycling Contribution Charge,12/09/2014,386370,40.81,NET,City Electrical Factors*,09325C
Gloucester City Council,23UE,Retail Market - Landlord,HM300,Operational Equipment <5000,5012,Recycling Contribution Charge,12/09/2014,386371,3.71,NET,City Electrical Factors*,09325C
Gloucester City Council,23UE,Shopmobility,PE200,Cleaning Materials,3600,Medical Waste Service,12/09/2014,390102,7.11,NET,Ocs Group Uk Limited T/A Cannon,06506A
Gloucester City Council,23UE,Stationery Services,RS150,Stationery,5302,Stationary,12/09/2014,389855,15.3,NET,Lyreco Uk Ltd,11746G
Gloucester City Council,23UE,Tic Rovercard Sales,LT101,Materials For Sale,5080,Agent Return Period 3 14/15,12/09/2014,389880,3999,NET,Stagecoach Services Ltd*,56554W
Gloucester City Council,23UE,Tic Rovercard Sales,LT101,Sale Of Goods And Services,9230,Agent Return Period 3 14/15,12/09/2014,389880,-333.25,NET,Stagecoach Services Ltd*,56554W
Gloucester City Council,23UE,Tic Theatre Ticket Sales,LT107,Materials For Sale,5080,Ticket Sales 'Charlie a play',12/09/2014,390290,48,NET,Kings Theatre,54213X
Gloucester City Council,23UE,Tic Theatre Ticket Sales,LT107,Sale Of Goods And Services,9230,Ticket Sales 'Charlie a play',12/09/2014,390290,-4,NET,Kings Theatre,54213X
Gloucester City Council,23UE,Accelerator 1 Econ Challenge F,FP302,Other Minor Supplies Services,5590,Enterprise club mtg: 14/2 refreshments,15/09/2014,380186,39,NET,University Of Gloucestershire,57991H
Gloucester City Council,23UE,Airport Land,RO400,Fees For Services Received,5350,Contribution towards airport governance,15/09/2014,389121,13395,NET,Cheltenham Borough Council,04176B
Gloucester City Council,23UE,Blackfriars,LA609,Cleaning Materials,3600,JULY14 cleaning cover,15/09/2014,388518,325,NET,Into Cleaning,14609P
Gloucester City Council,23UE,Building Control,PT400,Subscriptions,5600,"Claim: A15YP886, invoice SINV063672",15/09/2014,390350,5267.79,NET,Pitmans Llp,15184S
Gloucester City Council,23UE,REDACTED,REDACTED,REDACTED,REDACTED,REDACTED,15/09/2014,REDACTED,25,NET,REDACTED,REDACTED
Gloucester City Council,23UE,Legal Services,RS200,Basic Pay - Temporary Staff,2751,TEMPORARY STAFF,15/09/2014,390140,800,NET,Badenoch & Clark,01536P
Gloucester City Council,23UE,Matson & Robinswood Play S106,LY151,Contract Payments,0020,Climbing Structure,15/09/2014,389430,5751.2,CAP,Kompan Ltd,03575J
Gloucester City Council,23UE,St Michaels Tower,GY016,Contract Payments,0020,ST MICHAELS TOWER,15/09/2014,389857,25076.11,CAP,Carrek Limited,14860D
Gloucester City Council,23UE,Tourism Marketing,LT100,Exhibits And Collections,5038,Male Plastic Mannequin,15/09/2014,390043,236.14,NET,Display Sense,09632P
Gloucester City Council,23UE,City Museum And Art Gallery,LM200,Drawing Supplies,5072,SPENCERS,16/09/2014,389529,195,NET,Spencers,13961F
Gloucester City Council,23UE,Civica Admin Charges,RT105,Postages,5400,Post 18/08 - 29/08 2014,16/09/2014,390149,1109.96,NET,Royal Mail S.Wales & South West,35830S
Gloucester City Council,23UE,REDACTED,REDACTED,REDACTED,REDACTED,REDACTED,16/09/2014,REDACTED,250,NET,REDACTED,REDACTED
Gloucester City Council,23UE,REDACTED,REDACTED,REDACTED,REDACTED,REDACTED,16/09/2014,REDACTED,250,NET,REDACTED,REDACTED
Gloucester City Council,23UE,Heritage Trails,GY011,Contract Payments,0020,WALKING TOURS,16/09/2014,390362,3683.25,CAP,Icon.Net,52505Z
Gloucester City Council,23UE,Homelessness,CH120,General Repair/Maint Buildings,3000,operators chair,16/09/2014,388660,90,NET,Cotswold Business Supplies,10835S
Gloucester City Council,23UE,REDACTED,REDACTED,REDACTED,REDACTED,REDACTED,16/09/2014,REDACTED,484.6,NET,REDACTED,REDACTED
Gloucester City Council,23UE,REDACTED,REDACTED,REDACTED,REDACTED,REDACTED,16/09/2014,REDACTED,500,NET,REDACTED,REDACTED
Gloucester City Council,23UE,Legal Services,RS200,Agency Fees,9105,TEMPORARY STAFF,16/09/2014,390044,1438.93,NET,Venn Group Ltd,04339P
Gloucester City Council,23UE,Legal Services,RS200,Basic Pay - Temporary Staff,2751,TEMPORARY STAFF,16/09/2014,390141,800,NET,Badenoch & Clark,01536P
Gloucester City Council,23UE,Museum Phase 2 Hlf,GY001,Contract Payments,0020,HISTORIC TRAIL,16/09/2014,390363,125,CAP,Icon.Net,52505Z
Gloucester City Council,23UE,Blackfriars,LA609,Contract Cleaning,3620,Cleaning Windows,17/09/2014,388378,100,NET,Gloucester Cleaning Service,17896B
Gloucester City Council,23UE,Blackfriars,LA609,General Repair/Maint Buildings,3000,BLACKFRIARS,17/09/2014,390513,223,NET,Action Pest Control Ltd,50323C
Gloucester City Council,23UE,Blackfriars Catering,LA220,Catering Provisions -Liquor,5111,DRINK,17/09/2014,390365,326.12,NET,Cellar Supplies Cheltenham Ltd,01563L
Gloucester City Council,23UE,Business Grants,GY007,Contract Payments,0020,GRANT,17/09/2014,390549,750,CAP,Envesca Ltd,14981P
Gloucester City Council,23UE,Business Grants,GY007,Contract Payments,0020,GRANT,17/09/2014,390550,650,CAP,G S Consultancy (Management Training),14980S
Gloucester City Council,23UE,Business Grants,GY007,Contract Payments,0020,GRANT,17/09/2014,390592,500,CAP,Lilac Lily Designs,14982M
Gloucester City Council,23UE,Cemeteries,HC300,Maint Of Grounds - General,3030,CASKET,17/09/2014,390546,230.76,NET,P&L Manufacturing,57596U
Gloucester City Council,23UE,Cemeteries,HC300,Maint Of Grounds - General,3030,MONUMENT,17/09/2014,390572,200,NET,F J Cambridge & Co Ltd,48841N
Gloucester City Council,23UE,Cemeteries,HC300,Major R And M - Vehicles,4010,CLEANING GOODS,17/09/2014,390402,62.54,NET,Spaldings,48759Y
Gloucester City Council,23UE,Cemeteries,HC300,Operational Materials,5070,GREEN,17/09/2014,390370,715,NET,Allstone Sand & Gravel Aggregates Ltd,00940M
Gloucester City Council,23UE,Cemeteries,HC300,Purch Vehicles/M. Plant <5000,4000,BRUSH CUTTER,17/09/2014,390376,308,NET,Garden Machinery Gloucester,55641K
Gloucester City Council,23UE,Cemeteries,HC300,Purch Vehicles/M. Plant <5000,4000,GUIDE BAR,17/09/2014,390399,36.9,NET,Spaldings,48759Y
Gloucester City Council,23UE,Cemeteries,HC300,Trade Refuse Tipping Fees,6297,DUMPER HIRE,17/09/2014,390388,475,NET,Allstone Sand & Gravel Aggregates Ltd,00940M
Gloucester City Council,23UE,Cemeteries,HC300,Trade Refuse Tipping Fees,6297,SKIP,17/09/2014,390563,195,NET,Allstone Sand & Gravel Aggregates Ltd,00940M
Gloucester City Council,23UE,Cemeteries,HC300,Trade Refuse Tipping Fees,6297,SKIP HIRE,17/09/2014,390564,725,NET,Allstone Sand & Gravel Aggregates Ltd,00940M
Gloucester City Council,23UE,Cemeteries,HC300,Trade Refuse Tipping Fees,6297,SKIP HIRE,17/09/2014,390565,720,NET,Allstone Sand & Gravel Aggregates Ltd,00940M
Gloucester City Council,23UE,Cemeteries,HC300,Tyres,4014,SERVICE 22/09/14,17/09/2014,390479,114.28,NET,A T S Euromaster Ltd,01860B
Gloucester City Council,23UE,City Museum Catering,LM202,Catering Provisions -Food,5110,FOOD,17/09/2014,390416,4.96,NET,Total Produce Gloucester,12645E
Gloucester City Council,23UE,City Museum Catering,LM202,Catering Provisions -Food,5110,FOOD,17/09/2014,390417,4.96,NET,Total Produce Gloucester,12645E
Gloucester City Council,23UE,City Museum Catering,LM202,Catering Provisions -Food,5110,FOOD,17/09/2014,390432,4.96,NET,Total Produce Gloucester,12645E
Gloucester City Council,23UE,City Museum Catering,LM202,Catering Provisions -Food,5110,FOOD,17/09/2014,390433,4.96,NET,Total Produce Gloucester,12645E
Gloucester City Council,23UE,City Museum Catering,LM202,Catering Provisions -Food,5110,FOOD,17/09/2014,390524,4.96,NET,Total Produce Gloucester,12645E
Gloucester City Council,23UE,City Museum Catering,LM202,Catering Provisions -Food,5110,FOOD,17/09/2014,390525,4.96,NET,Total Produce Gloucester,12645E
Gloucester City Council,23UE,City Museum Catering,LM202,Catering Provisions -Liquor,5111,FOOD,17/09/2014,390557,24.9,NET,Woody's Fruit & Veg,11798L
Gloucester City Council,23UE,Civic Admin And Hospitality,RC210,Other Minor Supplies Services,5590,PHOTOGRAPHY,17/09/2014,390532,145,NET,T H Photography,55076X
Gloucester City Council,23UE,Client Revs & Bens Contract,RT240,Bailiffs Fees,5368,BAILIFF FEES,17/09/2014,390420,235.69,NET,Bristow & Sutor,05450M
Gloucester City Council,23UE,Client Revs & Bens Contract,RT240,Bailiffs Fees,5368,VAT ONLY INVOICE,17/09/2014,390418,0,NET,Bristow & Sutor,05450M
Gloucester City Council,23UE,Client Revs & Bens Contract,RT240,Bailiffs Fees,5368,VAT ONLY INVOICE,17/09/2014,390421,0,NET,Phoenix Commercial Collections Ltd,13435J
Gloucester City Council,23UE,Client Revs & Bens Contract,RT240,Bailiffs Fees,5368,VAT ONLY INVOICE,17/09/2014,390422,0,NET,Bristow & Sutor,05450M
Gloucester City Council,23UE,Client Revs & Bens Contract,RT240,Fees For Services Received,5350,10% CHECKS,17/09/2014,389898,8830,NET,Civica Uk Ltd,10841X
Gloucester City Council,23UE,Corporate Reporting /Financing,RC504,Fees For Services Received,5350,SEPT 2014,17/09/2014,390478,31.55,NET,Wider Plan Ltd ( Formerly Kiddivouchers),07893B
Gloucester City Council,23UE,Council Streetcare Team,HI101,General Repair/Maint Buildings,3000,PLOCK COURT,17/09/2014,390495,564.3,NET,Greenfields Garden Services Ltd,48130G
Gloucester City Council,23UE,Council Streetcare Team,HI101,Maint Of Grounds - General,3030,PLOCK COURT,17/09/2014,390494,579.6,NET,Greenfields Garden Services Ltd,48130G
Gloucester City Council,23UE,Countryside Unit,LP201,Clothing,5200,BOOTS,17/09/2014,390385,57.99,NET,Countrywide Farmers*,55687J
Gloucester City Council,23UE,Countryside Unit,LP201,Contract Cleaning,3620,CLEANING,17/09/2014,390593,130,NET,Cv Fisher Cleaning Services,14907C
Gloucester City Council,23UE,Countryside Unit,LP201,Maint Of Grounds - General,3030,MAGNETOMETER,17/09/2014,390542,201,NET,Linetop Ltd,14979A
Gloucester City Council,23UE,Countryside Unit,LP201,Maint Of Grounds - General,3030,STIHL HT 131,17/09/2014,390517,464.74,NET,Commercial Mower Supplies,06799D
Gloucester City Council,23UE,Countryside Unit,LP201,Maint Of Grounds - General,3030,WOOD,17/09/2014,390530,165,NET,Forest Products Ltd,08155N
Gloucester City Council,23UE,Countryside Unit,LP201,Major R And M - Vehicles,4010,HOSE,17/09/2014,390465,34.76,NET,Pirtek,48699R
Gloucester City Council,23UE,Countryside Unit,LP201,Routine R And M - Vehicles,4011,OIL,17/09/2014,390395,298.03,NET,Loxston Groundcare,14309F
Gloucester City Council,23UE,Countryside Unit,LP201,Routine R And M - Vehicles,4011,JCB GROUNDHOG,17/09/2014,390514,381.27,NET,Commercial Mower Supplies,06799D
Gloucester City Council,23UE,Countryside Unit,LP201,Routine R And M - Vehicles,4011,SCAG SABRE TOOTH,17/09/2014,390516,267.36,NET,Commercial Mower Supplies,06799D
Gloucester City Council,23UE,Crematorium,HC200,Fertilisers,3029,ROSES,17/09/2014,390387,29.98,NET,Highfield Garden Centres Ltd,48436C
Gloucester City Council,23UE,Crematorium,HC200,Memorial Plaques,5053,PLAQUE,17/09/2014,390398,48,NET,Arkell & Hurcombe,59812T
Gloucester City Council,23UE,Crematorium,HC200,Memorial Plaques,5053,PLAQUE,17/09/2014,390400,108,NET,Arkell & Hurcombe,59812T
Gloucester City Council,23UE,Crematorium,HC200,Oper Leases - Equipment,5029,CLEANING GOODS,17/09/2014,390402,35.88,NET,Spaldings,48759Y
Gloucester City Council,23UE,Crematorium,HC200,Oper Leases - Equipment,5029,USB KEY,17/09/2014,390427,195.25,NET,Revolution Multimedia,07880L
Gloucester City Council,23UE,Crematorium,HC200,Repair/Maint Of Monuments,3004,SANCTUM,17/09/2014,390541,114,NET,The Columbaria Company,55078T
Gloucester City Council,23UE,Development Management,PT200,Advertising And Publicity,5702,ADVERT 04/09/14,17/09/2014,390471,204.51,NET,Local World Ltd,08556P
Gloucester City Council,23UE,Development Management,PT200,Microfilming / Cd-Rom Storage,5330,AUG 2014,17/09/2014,390423,24.5,NET,Transmedia Technology Ltd,08635T
Gloucester City Council,23UE,Development Management,PT200,Survey Fees,5381,GLOS FOOTBALL CLUB,17/09/2014,390401,245,NET,Monument Geomatics,11065F
Gloucester City Council,23UE,Docks Complex - Services,RB100,Cleaning Materials,3600,CLEANING GOODS,17/09/2014,390553,107.32,NET,Core Hygiene Ltd,03885P
Gloucester City Council,23UE,Eastgate Rooftop Emerg Works,RY159,Contract Payments,0020,EASTGATE SHOPPING MALL,17/09/2014,390506,11258.33,CAP,Rio Asphalt & Paving Co Ltd,12302R
Gloucester City Council,23UE,Economic Development,FP300,Other Minor Supplies Services,5590,BROCHURES,17/09/2014,390391,808,NET,Severnprint Ltd,49030C
Gloucester City Council,23UE,Economic Development,FP300,Other Minor Supplies Services,5590,POSTERS,17/09/2014,390505,162,NET,Severnprint Ltd,49030C
Gloucester City Council,23UE,Folk Museum,LM210,Operational Equipment <5000,5012,TRAINING,17/09/2014,390467,15.5,NET,As Conferences Ltd,14724N
Gloucester City Council,23UE,REDACTED,REDACTED,REDACTED,REDACTED,REDACTED,17/09/2014,REDACTED,100,NET,REDACTED,REDACTED
Gloucester City Council,23UE,Gloucester Guildhall,LA100,Security Services Fees,5351,SECURITY,17/09/2014,390396,856.25,NET,Nsgl Ltd,12539E
Gloucester City Council,23UE,Green Transport Policy,PJ130,Electric Car Charge,4030,SMART CAR,17/09/2014,390425,287.35,NET,Daimler Fleet Management,07828N
Gloucester City Council,23UE,Guildhall Bar And Caf�,LA210,Catering Provisions -Food,5110,FOOD,17/09/2014,390381,4.96,NET,Total Produce Gloucester,12645E
Gloucester City Council,23UE,Guildhall Bar And Caf�,LA210,Catering Provisions -Food,5110,FOOD,17/09/2014,390382,4.96,NET,Total Produce Gloucester,12645E
Gloucester City Council,23UE,Guildhall Bar And Caf�,LA210,Catering Provisions -Food,5110,FOOD,17/09/2014,390383,4.96,NET,Total Produce Gloucester,12645E
Gloucester City Council,23UE,Guildhall Bar And Caf�,LA210,Catering Provisions -Food,5110,FOOD,17/09/2014,390389,4.96,NET,Total Produce Gloucester,12645E
Gloucester City Council,23UE,Guildhall Bar And Caf�,LA210,Catering Provisions -Food,5110,FOOD,17/09/2014,390404,4.96,NET,Total Produce Gloucester,12645E
Gloucester City Council,23UE,Guildhall Bar And Caf�,LA210,Catering Provisions -Food,5110,FOOD,17/09/2014,390413,4.96,NET,Total Produce Gloucester,12645E
Gloucester City Council,23UE,Guildhall Bar And Caf�,LA210,Catering Provisions -Food,5110,FOOD,17/09/2014,390415,4.96,NET,Total Produce Gloucester,12645E
Gloucester City Council,23UE,Guildhall Bar And Caf�,LA210,Catering Provisions -Food,5110,FOOD,17/09/2014,390431,4.96,NET,Total Produce Gloucester,12645E
Gloucester City Council,23UE,Guildhall Bar And Caf�,LA210,Catering Provisions -Food,5110,FOOD,17/09/2014,390558,113.11,NET,Woody's Fruit & Veg,11798L
Gloucester City Council,23UE,Guildhall Bar And Caf�,LA210,Catering Provisions -Food,5110,FOOD,17/09/2014,390559,100.42,NET,Woodward Foodservice,10714F
Gloucester City Council,23UE,Guildhall Bar And Caf�,LA210,Catering Provisions -Food,5110,FOOD,17/09/2014,390560,4.96,NET,Total Produce Gloucester,12645E
Gloucester City Council,23UE,Guildhall Bar And Caf�,LA210,Catering Provisions -Food,5110,FOOD,17/09/2014,390561,4.96,NET,Total Produce Gloucester,12645E
Gloucester City Council,23UE,REDACTED,REDACTED,REDACTED,REDACTED,REDACTED,17/09/2014,REDACTED,500,NET,REDACTED,REDACTED
Gloucester City Council,23UE,REDACTED,REDACTED,REDACTED,REDACTED,REDACTED,17/09/2014,REDACTED,150,NET,REDACTED,REDACTED
Gloucester City Council,23UE,Guildhall Events,LA200,Fees For Services Received,5350,NEWSPAPERS,17/09/2014,390378,28,NET,W H Smith Ltd,40860M
Gloucester City Council,23UE,REDACTED,REDACTED,REDACTED,REDACTED,REDACTED,17/09/2014,REDACTED,440,NET,REDACTED,REDACTED
Gloucester City Council,23UE,REDACTED,REDACTED,REDACTED,REDACTED,REDACTED,17/09/2014,REDACTED,250,NET,REDACTED,REDACTED
Gloucester City Council,23UE,REDACTED,REDACTED,REDACTED,REDACTED,REDACTED,17/09/2014,REDACTED,395,NET,REDACTED,REDACTED
Gloucester City Council,23UE,Hackney Carriages,HL100,Other Minor Supplies Services,5590,TRAINERS,17/09/2014,390501,63.65,NET,Safpro Industrial Supply Co,39190W
Gloucester City Council,23UE,REDACTED,REDACTED,REDACTED,REDACTED,REDACTED,17/09/2014,REDACTED,400,NET,REDACTED,REDACTED
Gloucester City Council,23UE,Hempsted Market/Car Boot,HM234,Maint Of Grounds - General,3030,HEMPSTED,17/09/2014,390411,323.4,NET,REDACTED,REDACTED
Gloucester City Council,23UE,Housing Works In Default,HD500,Clearance And Cleansing Fees,5384,REDACTED,17/09/2014,390429,125,NET,Davey's Building Maintenance,57010K
Gloucester City Council,23UE,Human Resources,EH100,Fees For Services Received,5350,ADVERT,17/09/2014,390472,500,NET,Emap Publishing Ltd,15188U
Gloucester City Council,23UE,Human Resources,EH100,Fees For Services Received,5350,July 2014 payroll charges,17/09/2014,388515,2726.74,NET,Gloucestershire County Council,18650D
Gloucester City Council,23UE,Investment Property,RB500,Lift Maintenance,3051,FOLK MUSEUM,17/09/2014,390372,55.07,NET,Pickerings Europe Ltd*,58816U
Gloucester City Council,23UE,Legal Services,RS200,Agency Fees,9105,TEMPORARY STAFF,17/09/2014,389666,1254.1,NET,Venn Group Ltd,04339P
Gloucester City Council,23UE,Legal Services,RS200,Agency Fees,9105,TEMPORARY STAFF,17/09/2014,389890,1274.54,NET,Venn Group Ltd,04339P
Gloucester City Council,23UE,Legal Services,RS200,Asp Agency Staff Costs,2985,TEMPORARY STAFF,17/09/2014,390499,796.25,NET,Michael Page International Recruitment Ltd,06601P
Gloucester City Council,23UE,Legal Services,RS200,Fees For Services Received,5350,PUBLICATION,17/09/2014,390392,36.95,NET,Marston Book Services,56453D
Gloucester City Council,23UE,Licences,HE510,Vocational Training,2970,professional licensing practitioners,17/09/2014,388917,150,NET,The Institute Of Licensing (Events) Ltd,10855K
Gloucester City Council,23UE,Meet & Greet,FP309,Advertising And Publicity,5702,ADVERT,17/09/2014,390503,325,NET,A T Graphics Ltd,14985F
Gloucester City Council,23UE,Meet & Greet,FP309,Advertising And Publicity,5702,ADVERT,17/09/2014,390412,225,NET,Expo Management Ltd,14164H
Gloucester City Council,23UE,Nms Contract,HI102,Contracted Services,6970,SEPT 2014,17/09/2014,390480,490613.67,NET,Enterprise (Aol) Ltd,06695G
Gloucester City Council,23UE,Nms Contract,HI102,Operational Equipment <5000,5012,BAGS,17/09/2014,390448,100,NET,J & Hm Dickson Ltd,04119G
Gloucester City Council,23UE,Planning Policy,PT300,Basic Pay - Temporary Staff,2751,STAFF W/E 05/09/14,17/09/2014,390509,1459.79,NET,First Choice Recruitment Services,14987B
Gloucester City Council,23UE,Planning Policy,PT300,Basic Pay - Temporary Staff,2751,STAFF W/E 22/08/14,17/09/2014,390508,183.68,NET,First Choice Recruitment Services,14987B
Gloucester City Council,23UE,Planning Policy,PT300,Basic Pay - Temporary Staff,2751,STAFF W/E 29/08/14,17/09/2014,390507,1334.12,NET,First Choice Recruitment Services,14987B
Gloucester City Council,23UE,Pollution Control,HE300,Fees For Services Received,5350,CREDITED ON 390594,17/09/2014,389068,92.5,NET,Safpro Industrial Supply Co,39190W
Gloucester City Council,23UE,Postal Services,RS120,Postages,5400,MAILSHOT,17/09/2014,390386,2151.26,NET,Alpha Colour Printers Ltd,00945B
Gloucester City Council,23UE,Retail Market - Landlord,HM300,Events,5952,GATE STREET MARKET,17/09/2014,390476,5000,NET,City Centre Community Partnership,11601L
Gloucester City Council,23UE,Rugby World Cup,LT450,Advertising And Publicity,5702,Banner Advertising,17/09/2014,390135,4992,NET,Bay Media Ltd,14953V
Gloucester City Council,23UE,Stationery Services,RS150,Stationery,5302,PAPER,17/09/2014,390384,54.08,NET,Stanford Marsh Ltd*,51139M
Gloucester City Council,23UE,Stationery Services,RS150,Stationery,5302,STATIONERY,17/09/2014,390483,2.83,NET,Lyreco Uk Ltd,11746G
Gloucester City Council,23UE,Stationery Services,RS150,Stationery,5302,STATIONERY,17/09/2014,390484,40.91,NET,Lyreco Uk Ltd,11746G
Gloucester City Council,23UE,Stationery Services,RS150,Stationery,5302,STATIONERY,17/09/2014,390485,2.5,NET,Lyreco Uk Ltd,11746G
Gloucester City Council,23UE,Stationery Services,RS150,Stationery,5302,STATIONERY,17/09/2014,390486,117.9,NET,Lyreco Uk Ltd,11746G
Gloucester City Council,23UE,Stationery Services,RS150,Stationery,5302,STATIONERY,17/09/2014,390487,37.19,NET,Lyreco Uk Ltd,11746G
Gloucester City Council,23UE,Stationery Services,RS150,Stationery,5302,STATIONERY,17/09/2014,390488,340.8,NET,Lyreco Uk Ltd,11746G
Gloucester City Council,23UE,Taxi Marshalling Scheme,HL101,Taxi Marshals,5387,MARSHALLS,17/09/2014,390364,337.5,NET,Cuff Security Services Ltd,12073G
Gloucester City Council,23UE,Taxi Marshalling Scheme,HL101,Taxi Marshals,5387,MARSHALLS,17/09/2014,390366,187.5,NET,Cuff Security Services Ltd,12073G
Gloucester City Council,23UE,Taxi Marshalling Scheme,HL101,Taxi Marshals,5387,MARSHALLS,17/09/2014,390367,187.5,NET,Cuff Security Services Ltd,12073G
Gloucester City Council,23UE,Taxi Marshalling Scheme,HL101,Taxi Marshals,5387,MARSHALLS,17/09/2014,390368,187.5,NET,Cuff Security Services Ltd,12073G
Gloucester City Council,23UE,Taxi Marshalling Scheme,HL101,Taxi Marshals,5387,MARSHALLS,17/09/2014,390369,187.5,NET,Cuff Security Services Ltd,12073G
Gloucester City Council,23UE,Taxi Marshalling Scheme,HL101,Taxi Marshals,5387,MARSHALLS,17/09/2014,390406,187.5,NET,Cuff Security Services Ltd,12073G
Gloucester City Council,23UE,Taxi Marshalling Scheme,HL101,Taxi Marshals,5387,MARSHALLS,17/09/2014,390407,187.5,NET,Cuff Security Services Ltd,12073G
Gloucester City Council,23UE,Taxi Marshalling Scheme,HL101,Taxi Marshals,5387,MARSHALLS,17/09/2014,390408,318.75,NET,Cuff Security Services Ltd,12073G
Gloucester City Council,23UE,Taxi Marshalling Scheme,HL101,Taxi Marshals,5387,MARSHALLS,17/09/2014,390409,187.5,NET,Cuff Security Services Ltd,12073G
Gloucester City Council,23UE,Taxi Marshalling Scheme,HL101,Taxi Marshals,5387,MARSHALLS,17/09/2014,390410,175,NET,Cuff Security Services Ltd,12073G
Gloucester City Council,23UE,The Arbor,HC501,Catering Provisions -Food,5110,FOOD,17/09/2014,390455,13.59,NET,Total Produce Gloucester,12645E
Gloucester City Council,23UE,The Arbor,HC501,Catering Provisions -Food,5110,FOOD,17/09/2014,390456,22.1,NET,Total Produce Gloucester,12645E
Gloucester City Council,23UE,Tic Rovercard Sales,LT101,Materials For Sale,5080,PERIOD 4,17/09/2014,390526,4084,NET,Stagecoach Services Ltd*,56554W
Gloucester City Council,23UE,Tic Rovercard Sales,LT101,Sale Of Goods And Services,9230,PERIOD 4,17/09/2014,390526,-340.33,NET,Stagecoach Services Ltd*,56554W
Gloucester City Council,23UE,REDACTED,REDACTED,REDACTED,REDACTED,REDACTED,17/09/2014,REDACTED,778,NET,REDACTED,REDACTED
Gloucester City Council,23UE,REDACTED,REDACTED,REDACTED,REDACTED,REDACTED,17/09/2014,REDACTED,-64.83,NET,REDACTED,REDACTED
Gloucester City Council,23UE,REDACTED,REDACTED,REDACTED,REDACTED,REDACTED,17/09/2014,REDACTED,37.5,NET,REDACTED,REDACTED
Gloucester City Council,23UE,Tic Trading,LT110,Materials For Sale,5080,MAGNETS,17/09/2014,390512,102,NET,Magnartism Ltd,09098P
Gloucester City Council,23UE,REDACTED,REDACTED,REDACTED,REDACTED,REDACTED,17/09/2014,REDACTED,20.25,NET,REDACTED,REDACTED
Gloucester City Council,23UE,REDACTED,REDACTED,REDACTED,REDACTED,REDACTED,17/09/2014,REDACTED,-3.75,NET,REDACTED,REDACTED
Gloucester City Council,23UE,Tourism Marketing,LT100,Exhibits And Collections,5038,HANGERS,17/09/2014,390468,57.89,NET,Display Sense,09632P
Gloucester City Council,23UE,Tourism Marketing,LT100,Rents,3200,28 SOUTHGATE ST,17/09/2014,390529,5725,NET,P W Fido & Associates,01210A
Gloucester City Council,23UE,Tourism Marketing,LT100,Uniforms,5201,BLOUSES,17/09/2014,390473,77.95,NET,Simon Jersey Ltd,40555W
Gloucester City Council,23UE,Tourism Marketing,LT100,Window Cleaning,3610,CLEANING,17/09/2014,390434,42.93,NET,Interserve Fs (Uk) Limited,07778C
Gloucester City Council,23UE,Blackfriars Catering,LA220,Catering Provisions -Liquor,5111,DRINKS,18/09/2014,390765,40.46,NET,Cellar Supplies Cheltenham Ltd,01563L
Gloucester City Council,23UE,Building Control,PT400,Basic Pay - Temporary Staff,2751,TEMPORARY STAFF,18/09/2014,390756,1418.05,NET,The Oyster Partnership Limited,14900T
Gloucester City Council,23UE,Building Control,PT400,Basic Pay - Temporary Staff,2751,TEMPORARY STAFF,18/09/2014,390757,1380.95,NET,The Oyster Partnership Limited,14900T
Gloucester City Council,23UE,Building Control,PT400,Basic Pay - Temporary Staff,2751,TEMPORARY STAFF,18/09/2014,390758,1438.95,NET,The Oyster Partnership Limited,14900T
Gloucester City Council,23UE,Building Control,PT400,Basic Pay - Temporary Staff,2751,TEMPORARY STAFF,18/09/2014,390759,1097.2,NET,The Oyster Partnership Limited,14900T
Gloucester City Council,23UE,Business Support,PT250,Fuel,4012,ALLSTAR BUSINESS SOLUTIONS LTD,18/09/2014,390361,326.47,NET,Allstar Business Solutions Ltd (Arval),06594A
Gloucester City Council,23UE,Business Support,PT250,Publications,5060,NEWSPAPERS,18/09/2014,390377,189.5,NET,Ymk Supermarket,55281U
Gloucester City Council,23UE,Celebratory Lights,LT302,Christmas Lights,5024,CHERRY PICKER HIRE,18/09/2014,390736,120,NET,REDACTED,REDACTED
Gloucester City Council,23UE,Cemeteries,HC300,Basic Pay - Temporary Staff,2751,TEMPORARY STAFF,18/09/2014,390763,3049.8,NET,Anderson Recruitment Ltd,14646H
Gloucester City Council,23UE,Cemeteries,HC300,Maint Of Grounds - General,3030,BOARDS,18/09/2014,390547,179,NET,Millington & Ramstedt Ltd,29815S
Gloucester City Council,23UE,City Museum Catering,LM202,Catering Provisions -Food,5110,AUGUST 2014 MACHINE RENTAL,18/09/2014,390731,135,NET,La Spaziale Uk Ltd,11823P
Gloucester City Council,23UE,City Museum Catering,LM202,Catering Provisions -Food,5110,FOOD,18/09/2014,390704,58.14,NET,Woodward Foodservice,10714F
Gloucester City Council,23UE,City Museum Catering,LM202,Catering Provisions -Food,5110,FOOD,18/09/2014,390705,50.04,NET,Woodward Foodservice,10714F
Gloucester City Council,23UE,City Museum Catering,LM202,Catering Provisions -Food,5110,FOOD,18/09/2014,390706,66,NET,Woodward Foodservice,10714F
Gloucester City Council,23UE,City Museum Catering,LM202,Catering Provisions -Food,5110,FOOD,18/09/2014,390733,4.96,NET,Total Produce Gloucester,12645E
Gloucester City Council,23UE,City Museum Catering,LM202,Catering Provisions -Food,5110,FOOD,18/09/2014,390734,4.96,NET,Total Produce Gloucester,12645E
Gloucester City Council,23UE,City Museum Catering,LM202,Catering Provisions -Food,5110,FOOD,18/09/2014,390735,4.96,NET,Total Produce Gloucester,12645E
Gloucester City Council,23UE,City Museum Catering,LM202,Catering Provisions -Food,5110,FOOD,18/09/2014,390748,4.96,NET,Total Produce Gloucester,12645E
Gloucester City Council,23UE,City Museum Catering,LM202,Catering Provisions -Food,5110,FOOD,18/09/2014,390749,4.96,NET,Total Produce Gloucester,12645E
Gloucester City Council,23UE,City Museum Catering,LM202,Catering Provisions -Food,5110,FOOD,18/09/2014,390752,4.96,NET,Total Produce Gloucester,12645E
Gloucester City Council,23UE,Council Streetcare Team,HI101,Advertising And Publicity,5702,ADVERT 04/09/14,18/09/2014,390469,233.73,NET,Local World Ltd,08556P
Gloucester City Council,23UE,Council Streetcare Team,HI101,General Repair/Maint Buildings,3000,CHERRY PICKER HIRE,18/09/2014,390737,120,NET,REDACTED,REDACTED
Gloucester City Council,23UE,Environmental Planning,LM340,Fees For Services Received,5350,ADVERT 02/09/14,18/09/2014,390470,204.51,NET,Local World Ltd,08556P
Gloucester City Council,23UE,Environmental Planning,LM340,Fees For Services Received,5350,DANIELS BROOK,18/09/2014,390520,1840,NET,Lower Severn Drainage Board,04918R
Gloucester City Council,23UE,Gl1 Pool Air Handling System,LY152,Contract Payments,0020,"GL1 Swimming Pool, 24/06/14",18/09/2014,387267,260,CAP,Rpa,01710Y
Gloucester City Council,23UE,Guildhall Bar And Caf�,LA210,Catering Provisions -Food,5110,FOOD,18/09/2014,390751,4.96,NET,Total Produce Gloucester,12645E
Gloucester City Council,23UE,Guildhall Bar And Caf�,LA210,Catering Provisions -Liquor,5111,DRINKS,18/09/2014,390766,50.94,NET,Cellar Supplies Cheltenham Ltd,01563L
Gloucester City Council,23UE,REDACTED,REDACTED,REDACTED,REDACTED,REDACTED,18/09/2014,REDACTED,2382.83,NET,REDACTED,REDACTED
Gloucester City Council,23UE,REDACTED,REDACTED,REDACTED,REDACTED,REDACTED,18/09/2014,REDACTED,100,NET,REDACTED,REDACTED
Gloucester City Council,23UE,Hempsted Market/Car Boot,HM234,Sewerage And Environ Charges,3402,TOILET HIRE,18/09/2014,390761,456.4,NET,Abbey Loos Limited,10787B
Gloucester City Council,23UE,Homelessness,CH120,Fees For Services Received,5350,MEDICAL REPORT,18/09/2014,390746,20.5,NET,Gloucester City Health Centre,02093U
Gloucester City Council,23UE,REDACTED,REDACTED,REDACTED,REDACTED,REDACTED,18/09/2014,REDACTED,20.5,NET,REDACTED,REDACTED
Gloucester City Council,23UE,Homelessness,CH120,Fees For Services Received,5350,medical report,18/09/2014,390742,20.5,NET,Gloucester Health Access Centre,11611H
Gloucester City Council,23UE,Homelessness,CH120,Fees For Services Received,5350,MEDICAL REPORT,18/09/2014,390743,20.5,NET,Dr P Lush & Partners,05680S
Gloucester City Council,23UE,Homelessness,CH120,Fees For Services Received,5350,MEDICAL REPORT,18/09/2014,390745,20.5,NET,Rosebank Health,03041E
Gloucester City Council,23UE,Homelessness,CH120,Fees For Services Received,5350,storage,18/09/2014,390760,675,NET,Advanced Removals & Storage Ltd,57142R
Gloucester City Council,23UE,REDACTED,REDACTED,REDACTED,REDACTED,REDACTED,18/09/2014,REDACTED,20.5,NET,REDACTED,REDACTED
Gloucester City Council,23UE,Homelessness Prevention,CH122,Fees For Services Received,5350,Homelessness Questionnaire,18/09/2014,389408,20.5,NET,Dr P Lush & Partners,05680S
Gloucester City Council,23UE,Investment Property,RB500,Lift Maintenance,3051,CITY MUSEUM,18/09/2014,390371,125.32,NET,Pickerings Europe Ltd*,58816U
Gloucester City Council,23UE,Investment Property,RB500,Repair/Maint Of Fixed Plant,3006,quarterly checks,18/09/2014,388665,2128.76,NET,Hewer Facilities Mgt Ltd,05232A
Gloucester City Council,23UE,Legal Services,RS200,Agency Fees,9105,TEMPORARY STAFF,18/09/2014,390481,1226.7,NET,Venn Group Ltd,04339P
Gloucester City Council,23UE,Legal Services,RS200,Agency Fees,9105,TEMPORARY STAFF,18/09/2014,390477,486.79,NET,Sellick Partnership Group Ltd,11057C
Gloucester City Council,23UE,Legal Services,RS200,Agency Fees,9105,TEMPORARY STAFF,18/09/2014,390482,1438.93,NET,Venn Group Ltd,04339P
Gloucester City Council,23UE,Legal Services,RS200,Asp Agency Staff Costs,2985,TEMPORARY STAFF,18/09/2014,390500,726.25,NET,Michael Page International Recruitment Ltd,06601P
Gloucester City Council,23UE,Marketing Gloucester Charges,RC433,Contracted Services,6970,Q3 GRANT 2014-15,18/09/2014,390747,43662.5,NET,Marketing Gloucester Ltd,08925E
Gloucester City Council,23UE,Matson & Robinswood Play S106,LY151,Contract Payments,0020,TABLE TENNIS TABLES,18/09/2014,390573,4200,CAP,Redlynch Leisure Installations Ltd,03800B
Gloucester City Council,23UE,Meet & Greet,FP309,Advertising And Publicity,5702,1/4 PAGE ADVERT VISITOR GUIDE 2015,18/09/2014,390732,567,NET,Cotswold District Council,49331J
Gloucester City Council,23UE,Members Support,RC300,Training - Labour Group,5523,FUTURE HOUSING 2014,18/09/2014,390720,301.75,NET,Partnership Media Group Ltd T/A Govnet Comm,57218G
Gloucester City Council,23UE,Museum Phase 2 Hlf,GY001,Contract Payments,0020,City Museum Refurbishment,18/09/2014,389077,390,CAP,Rpa,01710Y
Gloucester City Council,23UE,Off Street Car Parks,PP110,Fees For Services Received,5350,August 2014,18/09/2014,388104,526.1,NET,Parkeon Ltd,03238G
Gloucester City Council,23UE,Public Health,HD200,Other Minor Supplies Services,5590,BIG LUNCH EVENT 1/6/14,18/09/2014,390729,168,NET,Gl Communities,09535X
Gloucester City Council,23UE,Retail Market - Landlord,HM300,Cleaning / Domestic Equipment,5011,Cabinets,18/09/2014,389655,18.05,NET,Initial Washroom Solutions,06143R
Gloucester City Council,23UE,Retail Market - Landlord,HM300,General Repair/Maint Buildings,3000,SERVICE 30/07/14,18/09/2014,390380,75.9,NET,Mitchells (Gloucester) Ltd,30160U
Gloucester City Council,23UE,Stationery Services,RS150,Stationery,5302,A3 PAPER,18/09/2014,390708,68.7,NET,Premier Paper Group Ltd,09166Y
Gloucester City Council,23UE,Stationery Services,RS150,Stationery,5302,STATIONERY,18/09/2014,390712,49.19,NET,Lyreco Uk Ltd,11746G
Gloucester City Council,23UE,Stationery Services,RS150,Stationery,5302,YEAR PLANNERS,18/09/2014,390711,12.9,NET,Lyreco Uk Ltd,11746G
Gloucester City Council,23UE,St Michaels Tower,GY016,Contract Payments,0020,CHERRY PICKER HIRE,18/09/2014,389515,120,CAP,REDACTED,REDACTED
Gloucester City Council,23UE,Swrda Asset Transfer,RY184,Capital General Repairs & Main,0013,Blackfriars Car Park Dayworks,18/09/2014,389913,10206.82,CAP,Ken Pink Plant Hire Ltd,56884V
Gloucester City Council,23UE,Taxi Marshalling Scheme,HL101,Taxi Marshals,5387,TAXI MARSHALLS,18/09/2014,390721,172.5,NET,Cuff Security Services Ltd,12073G
Gloucester City Council,23UE,Taxi Marshalling Scheme,HL101,Taxi Marshals,5387,TAXI MARSHALLS,18/09/2014,390722,126.5,NET,Cuff Security Services Ltd,12073G
Gloucester City Council,23UE,Taxi Marshalling Scheme,HL101,Taxi Marshals,5387,TAXI MARSHALLS,18/09/2014,390723,172.5,NET,Cuff Security Services Ltd,12073G
Gloucester City Council,23UE,Taxi Marshalling Scheme,HL101,Taxi Marshals,5387,TAXI MARSHALLS,18/09/2014,390724,161,NET,Cuff Security Services Ltd,12073G
Gloucester City Council,23UE,Taxi Marshalling Scheme,HL101,Taxi Marshals,5387,TAXI MARSHALLS,18/09/2014,390725,166.75,NET,Cuff Security Services Ltd,12073G
Gloucester City Council,23UE,Taxi Marshalling Scheme,HL101,Taxi Marshals,5387,TAXI MARSHALLS,18/09/2014,390726,172.5,NET,Cuff Security Services Ltd,12073G
Gloucester City Council,23UE,Taxi Marshalling Scheme,HL101,Taxi Marshals,5387,TAXI MARSHALLS,18/09/2014,390727,172.5,NET,Cuff Security Services Ltd,12073G
Gloucester City Council,23UE,Tic Trading,LT110,Materials For Sale,5080,COTSWOLD WAY DVD FOR RESALE,18/09/2014,390753,41.65,NET,Reardon Publishing,37010X
Gloucester City Council,23UE,Tic Trading,LT110,Publications For Sale,5064,books for resale,18/09/2014,390740,493.87,NET,David Whyman Map Sales,02653Z
Gloucester City Council,23UE,Tourism Marketing,LT100,Exhibits And Collections,5038,1/4 PAGE ADVERT GROUP LEISURE MAG,18/09/2014,390754,325,NET,Yandell Publishing Ltd,14956N
Gloucester City Council,23UE,Tree Planting Grant Funded,LY150,Contract Payments,0020,SUMMER WATERING,18/09/2014,390496,135,CAP,Greenfields Garden Services Ltd,48130G
Gloucester City Council,23UE,Tree Planting Grant Funded,LY150,Contract Payments,0020,SUMMER WATERING,18/09/2014,390497,30,CAP,Greenfields Garden Services Ltd,48130G
Gloucester City Council,23UE,Tree Planting Grant Funded,LY150,Contract Payments,0020,SUMMER WATERING,18/09/2014,390521,30,CAP,Greenfields Garden Services Ltd,48130G
Gloucester City Council,23UE,Aspire Admin Charges,LC105,Other Minor Income,9900,BAILIFF PAYMENTS 29/08/14 2/09/14,19/09/2014,390830,33.7,NET,Aspire Sports & Cultural Trust,08135V
Gloucester City Council,23UE,Asset Management,RS300,Subscriptions,5600,PLANNING 09/14-08/15,19/09/2014,390458,895,NET,Cipfa Business Ltd,53500A
Gloucester City Council,23UE,Barbican House,RY187,Contract Payments,0020,BARBICAN HOUSE,19/09/2014,390424,9876.46,CAP,Neptune Building Services Ltd,31780V
Gloucester City Council,23UE,Barbican House,RY187,Contract Payments,0020,"Barbican House, attend to fault on pump",19/09/2014,390125,487.43,CAP,Rf Gardiner Limited,12299B
Gloucester City Council,23UE,Bus Station,RB400,General Repair/Maint Buildings,3000,"Bus Station, Remidial works",19/09/2014,390118,985.38,NET,Rf Gardiner Limited,12299B
Gloucester City Council,23UE,Docks Complex - Services,RB100,General Repair/Maint Buildings,3000,4TH FLOOR HERBERT W/H TOILETS,19/09/2014,390715,100,NET,Three Counties Drain Service,44033V
Gloucester City Council,23UE,Docks Complex - Services,RB100,General Repair/Maint Buildings,3000,"Herbert Warehouse, Door closer",19/09/2014,390119,137.73,NET,Rf Gardiner Limited,12299B
Gloucester City Council,23UE,Docks Complex - Services,RB100,General Repair/Maint Buildings,3000,"Herbert Warehouse, Fix leak to pipe",19/09/2014,390169,19.08,NET,Rf Gardiner Limited,12299B
Gloucester City Council,23UE,Docks Complex - Services,RB100,General Repair/Maint Buildings,3000,"Herbert Warehouse, Install bird netting",19/09/2014,390113,520,NET,Rf Gardiner Limited,12299B
Gloucester City Council,23UE,Docks Complex - Services,RB100,General Repair/Maint Buildings,3000,"Herbert Warehouse, repair gents toilet",19/09/2014,390184,38.16,NET,Rf Gardiner Limited,12299B
Gloucester City Council,23UE,Docks Complex - Services,RB100,General Repair/Maint Buildings,3000,"Phillpotts Warehouse, Repair leak",19/09/2014,390181,38.16,NET,Rf Gardiner Limited,12299B
Gloucester City Council,23UE,Docks Complex - Services,RB100,Lift Maintenance,3051,"Engineer 19/06/2014, Herbert Warehouse",19/09/2014,387192,38.29,NET,Pickerings Europe Ltd*,58816U
Gloucester City Council,23UE,Docks Complex - Services,RB100,Repair/Maint Of Fixed Plant,3006,Ground Floor Fault 26/06/2014,19/09/2014,387344,310,NET,Hewer Facilities Mgt Ltd,05232A
Gloucester City Council,23UE,Electrical Investigatory Works,RY142,Capital General Repairs & Main,0013,CITY MUSEUM,19/09/2014,390568,297.97,CAP,Rf Gardiner Limited,12299B
Gloucester City Council,23UE,Electrical Investigatory Works,RY142,Contract Payments,0020,"Station Road Taxi Kiosk, Power",19/09/2014,390129,52.56,CAP,Rf Gardiner Limited,12299B
Gloucester City Council,23UE,Gl1 Emergency Works,RY160,Contract Payments,0020,"Herbert Warehouse, Install new bike shed",19/09/2014,390176,5240,CAP,Rf Gardiner Limited,12299B
Gloucester City Council,23UE,REDACTED,REDACTED,REDACTED,REDACTED,REDACTED,19/09/2014,REDACTED,111.55,NET,REDACTED,REDACTED
Gloucester City Council,23UE,Herbert Reception Upgrade,RY201,Contract Payments,0020,"Herbert Warehouse, ground floor refurb",19/09/2014,389076,1500,CAP,Rpa,01710Y
Gloucester City Council,23UE,Homelessness,CH120,Basic Pay - Temporary Staff,2751,TEMPORARY STAFF,19/09/2014,389696,703,NET,Building Recruitment Company Ltd,55385E
Gloucester City Council,23UE,REDACTED,REDACTED,REDACTED,REDACTED,REDACTED,19/09/2014,REDACTED,2087.72,NET,REDACTED,REDACTED
Gloucester City Council,23UE,REDACTED,REDACTED,REDACTED,REDACTED,REDACTED,19/09/2014,REDACTED,3097.69,NET,REDACTED,REDACTED
Gloucester City Council,23UE,REDACTED,REDACTED,REDACTED,REDACTED,REDACTED,19/09/2014,REDACTED,320,NET,REDACTED,REDACTED
Gloucester City Council,23UE,Homelessness,CH120,Board And Lodging,5515,various tenants,19/09/2014,390813,638.09,NET,James Legge Property (Ltd),07844R
Gloucester City Council,23UE,Homelessness,CH120,Board And Lodging,5515,various tenants,19/09/2014,390815,811.96,NET,Carbrey Housing Ltd,11098G
Gloucester City Council,23UE,Homelessness,CH120,Board And Lodging,5515,various tenants,19/09/2014,390817,1207.79,NET,Carbrey Housing Ltd,11098G
Gloucester City Council,23UE,Homelessness,CH120,Board And Lodging,5515,various tenants,19/09/2014,390823,1938,NET,Dorchester House Trust,12298D
Gloucester City Council,23UE,Homelessness,CH120,Board And Lodging,5515,various tenants,19/09/2014,390826,1066.4,NET,Kalmwood Ltd,08568G
Gloucester City Council,23UE,Homelessness,CH120,Fees For Services Received,5350,medical reports,19/09/2014,390741,175,NET,Now Medical,03468L
Gloucester City Council,23UE,Human Resources,EH100,Medical Expenses,2950,PHONAK ROGER PEN & MYLINK RECEIVER,19/09/2014,390755,537.99,NET,Connevans Limited,14972R
Gloucester City Council,23UE,Investment Property,RB500,General Repair/Maint Buildings,3000,"City Museum, attend leak in archeology",19/09/2014,390163,38.16,NET,Rf Gardiner Limited,12299B
Gloucester City Council,23UE,Investment Property,RB500,General Repair/Maint Buildings,3000,"City Museum, Attend to lighting fault",19/09/2014,390107,45.58,NET,Rf Gardiner Limited,12299B
Gloucester City Council,23UE,Investment Property,RB500,General Repair/Maint Buildings,3000,"City Museum, Clean Macerator",19/09/2014,390164,190.8,NET,Rf Gardiner Limited,12299B
Gloucester City Council,23UE,Investment Property,RB500,General Repair/Maint Buildings,3000,"City Museum, Repair Sump Pump",19/09/2014,390170,122.94,NET,Rf Gardiner Limited,12299B
Gloucester City Council,23UE,Investment Property,RB500,General Repair/Maint Buildings,3000,"Coney Hill Crem, Clear Guttering",19/09/2014,390161,32.84,NET,Rf Gardiner Limited,12299B
Gloucester City Council,23UE,Investment Property,RB500,General Repair/Maint Buildings,3000,"Coney Hill Crem, Repair Leaking Pipe",19/09/2014,390177,38.16,NET,Rf Gardiner Limited,12299B
Gloucester City Council,23UE,Investment Property,RB500,General Repair/Maint Buildings,3000,"Eastgate Market, clear blocked drainage",19/09/2014,390172,24.63,NET,Rf Gardiner Limited,12299B
Gloucester City Council,23UE,Investment Property,RB500,General Repair/Maint Buildings,3000,"Eastgate Market, Repair various lights",19/09/2014,390124,336.65,NET,Rf Gardiner Limited,12299B
Gloucester City Council,23UE,Investment Property,RB500,General Repair/Maint Buildings,3000,"Folk Museum, attend to buzzing light",19/09/2014,390182,82.48,NET,Rf Gardiner Limited,12299B
Gloucester City Council,23UE,Investment Property,RB500,General Repair/Maint Buildings,3000,"Folk Museum, Inspect Leak",19/09/2014,390122,38.16,NET,Rf Gardiner Limited,12299B
Gloucester City Council,23UE,Investment Property,RB500,General Repair/Maint Buildings,3000,"Gala Club, Unblock hoppers",19/09/2014,390165,131.36,NET,Rf Gardiner Limited,12299B
Gloucester City Council,23UE,Investment Property,RB500,General Repair/Maint Buildings,3000,"Guildhall, Attend faulty light fitting",19/09/2014,390171,187.24,NET,Rf Gardiner Limited,12299B
Gloucester City Council,23UE,Investment Property,RB500,General Repair/Maint Buildings,3000,"Guildhall, Replace TRV dial on radiator",19/09/2014,390112,66.99,NET,Rf Gardiner Limited,12299B
Gloucester City Council,23UE,Investment Property,RB500,General Repair/Maint Buildings,3000,"Guildhall, unblock ladies toilets",19/09/2014,390175,65.68,NET,Rf Gardiner Limited,12299B
Gloucester City Council,23UE,Investment Property,RB500,General Repair/Maint Buildings,3000,"Innsworth Lane Pavillion, board windows",19/09/2014,390173,32.31,NET,Rf Gardiner Limited,12299B
Gloucester City Council,23UE,Investment Property,RB500,General Repair/Maint Buildings,3000,"Rangers Centre, Repair fire door",19/09/2014,390174,86.94,NET,Rf Gardiner Limited,12299B
Gloucester City Council,23UE,Investment Property,RB500,General Repair/Maint Buildings,3000,"Rangers Centre, Re-wire fan",19/09/2014,390117,279.95,NET,Rf Gardiner Limited,12299B
Gloucester City Council,23UE,Investment Property,RB500,General Repair/Maint Buildings,3000,"Westgate Street, clear blocked drain",19/09/2014,389255,120,NET,Three Counties Drain Service,44033V
Gloucester City Council,23UE,Investment Property,RB500,General Repair/Maint Buildings,3000,"Windfall Way Pavillion, board up windows",19/09/2014,390168,55.03,NET,Rf Gardiner Limited,12299B
Gloucester City Council,23UE,Investment Property,RB500,Lift Maintenance,3051,GL1,19/09/2014,390393,249.28,NET,Pickerings Europe Ltd*,58816U
Gloucester City Council,23UE,Investment Property,RB500,Lift Maintenance,3051,GL1,19/09/2014,390394,249.28,NET,Pickerings Europe Ltd*,58816U
Gloucester City Council,23UE,Investment Property,RB500,Repair/Maint Of Fixed Plant,3006,Annual Service 01/07/2014,19/09/2014,387661,530,NET,Hewer Facilities Mgt Ltd,05232A
Gloucester City Council,23UE,Investment Property,RB500,Repair/Maint Of Fixed Plant,3006,Annual Service 17/06/2014,19/09/2014,387660,320,NET,Hewer Facilities Mgt Ltd,05232A
Gloucester City Council,23UE,Investment Property,RB500,Repair/Maint Of Fixed Plant,3006,GUILDHALL CALL OUT 18/9/14,19/09/2014,390718,191,NET,Airvent Systems Limited,51073T
Gloucester City Council,23UE,Kings Quarter,RY146,Contract Payments,0020,"Kings Walk Car Park, cut off lock",19/09/2014,390186,58.14,CAP,Rf Gardiner Limited,12299B
Gloucester City Council,23UE,Kings Quarter,RY146,Contract Payments,0020,"Station Road, Unscrew doors taxi kiosk",19/09/2014,390178,59.13,CAP,Rf Gardiner Limited,12299B
Gloucester City Council,23UE,Kings Sq Paving Emerg Works,RY161,Contract Payments,0020,"Kings Square, Replace slab",19/09/2014,390179,45.72,CAP,Rf Gardiner Limited,12299B
Gloucester City Council,23UE,Nms Contract,HI102,General Repair/Maint Buildings,3000,CREDITED ON 390571,19/09/2014,390764,50,NET,Polystar Plastics Ltd,01120C
Gloucester City Council,23UE,Nms Contract,HI102,General Repair/Maint Buildings,3000,purple bags,19/09/2014,377325,903,NET,Polystar Plastics Ltd,01120C
Gloucester City Council,23UE,Northwarehouse,RB150,General Repair/Maint Buildings,3000,"North Warehouse, provide spill kits",19/09/2014,390166,36.94,NET,Rf Gardiner Limited,12299B
Gloucester City Council,23UE,Off Street Car Parks,PP110,General Repair/Maint Buildings,3000,"Eastgate Rooftop Car Park, Repair lights",19/09/2014,390185,261.68,NET,Rf Gardiner Limited,12299B
Gloucester City Council,23UE,Off Street Car Parks,PP110,General Repair/Maint Buildings,3000,"Great Western Road Car Park, repairs",19/09/2014,390120,24.56,NET,Rf Gardiner Limited,12299B
Gloucester City Council,23UE,Off Street Car Parks,PP110,General Repair/Maint Buildings,3000,KINGS WALK CAR PARK,19/09/2014,390575,65.68,NET,Rf Gardiner Limited,12299B
Gloucester City Council,23UE,Off Street Car Parks,PP110,General Repair/Maint Buildings,3000,"Kings Walk Car Park, Repair Doors",19/09/2014,390123,42.78,NET,Rf Gardiner Limited,12299B
Gloucester City Council,23UE,Off Street Car Parks,PP110,General Repair/Maint Buildings,3000,"Kings Walk Car Park, Repair to lighting",19/09/2014,390180,829.92,NET,Rf Gardiner Limited,12299B
Gloucester City Council,23UE,Off Street Car Parks,PP110,General Repair/Maint Buildings,3000,"Longsmith St Car Park, remove graffiti",19/09/2014,390106,1164.91,NET,Rf Gardiner Limited,12299B
Gloucester City Council,23UE,Off Street Car Parks,PP110,General Repair/Maint Buildings,3000,"Longsmith St Car Park, repair light",19/09/2014,390183,265.82,NET,Rf Gardiner Limited,12299B
Gloucester City Council,23UE,Off Street Car Parks,PP110,General Repair/Maint Buildings,3000,P&D Labour/time on site,19/09/2014,389410,57,NET,Parkeon Ltd,03238G
Gloucester City Council,23UE,Off Street Car Parks,PP110,General Repair/Maint Buildings,3000,"Sinope St Car Park, Clear blocked gutter",19/09/2014,390115,37.89,NET,Rf Gardiner Limited,12299B
Gloucester City Council,23UE,Off Street Car Parks,PP110,General Repair/Maint Buildings,3000,"St Michaels Tower, Unblock gullies",19/09/2014,390116,23.89,NET,Rf Gardiner Limited,12299B
Gloucester City Council,23UE,Procurement Management,RP100,Vocational Training,2970,LGTP Annual Membership 14/15,19/09/2014,389353,470,NET,Veale Wasbrough Vizards Llp,48116A
Gloucester City Council,23UE,Rehousing,CH111,Fees For Services Received,5350,medical reports,19/09/2014,390741,85,NET,Now Medical,03468L
Gloucester City Council,23UE,Safer Stronger Communities,FP841,Other Minor Supplies Services,5590,Replacement Gazebo for Cutural Fayre,19/09/2014,390814,300,NET,Barton & Tredworth Neighbourhood Partnership,09679L
Gloucester City Council,23UE,Stationery Services,RS150,Printing,5300,LEGAL SEALS,19/09/2014,390714,27,NET,Shaw & Sons Ltd,40310F
Gloucester City Council,23UE,Stationery Services,RS150,Stationery,5302,STATIONERY,19/09/2014,390710,107.5,NET,Lyreco Uk Ltd,11746G
Gloucester City Council,23UE,St Michaels Tower,GY016,Contract Payments,0020,"St Michaels Tower, Water Pipe",19/09/2014,390121,171.22,CAP,Rf Gardiner Limited,12299B
Gloucester City Council,23UE,The Fleece,RB530,General Repair/Maint Buildings,3000,"11A Westgate Street, board up window",19/09/2014,390114,50.4,NET,Rf Gardiner Limited,12299B
Gloucester City Council,23UE,The Fleece,RB530,General Repair/Maint Buildings,3000,"Fleece Hotel, Various Repairs",19/09/2014,390167,911.73,NET,Rf Gardiner Limited,12299B
Gloucester City Council,23UE,Utilities,PT502,Electricity Supply,3110,Blackfriars,19/09/2014,390591,38.92,NET,British Gas Business,08301C
Gloucester City Council,23UE,REDACTED,REDACTED,REDACTED,REDACTED,REDACTED,19/09/2014,REDACTED,23.38,NET,REDACTED,REDACTED
Gloucester City Council,23UE,REDACTED,REDACTED,REDACTED,REDACTED,REDACTED,19/09/2014,REDACTED,259.25,NET,REDACTED,REDACTED
Gloucester City Council,23UE,REDACTED,REDACTED,REDACTED,REDACTED,REDACTED,19/09/2014,REDACTED,131.75,NET,REDACTED,REDACTED
Gloucester City Council,23UE,REDACTED,REDACTED,REDACTED,REDACTED,REDACTED,19/09/2014,REDACTED,212.5,NET,REDACTED,REDACTED
Gloucester City Council,23UE,REDACTED,REDACTED,REDACTED,REDACTED,REDACTED,19/09/2014,REDACTED,84,NET,REDACTED,REDACTED
Gloucester City Council,23UE,REDACTED,REDACTED,REDACTED,REDACTED,REDACTED,19/09/2014,REDACTED,214.2,NET,REDACTED,REDACTED
Gloucester City Council,23UE,All Main Buildings Voltage Mas,RY180,Contract Payments,0020,Charges July 2014,22/09/2014,389081,448.99,CAP,Parkeon Ltd,03238G
Gloucester City Council,23UE,Cemeteries,HC300,Maint Of Grounds - General,3030,CREM,22/09/2014,390443,128,NET,Enterprise (Aol) Ltd,06695G
Gloucester City Council,23UE,Cemeteries,HC300,Operational Materials,5070,ROSE TREES,22/09/2014,389500,89.97,NET,Highfield Garden Centres Ltd,48436C
Gloucester City Council,23UE,City Museum And Art Gallery,LM200,Publications For Sale,5064,FOSSILS,22/09/2014,390552,0.31,NET,Moussa Direct Ltd,12527M
Gloucester City Council,23UE,City Museum Catering,LM202,Catering Provisions -Food,5110,Food,22/09/2014,382704,36,NET,Taynton Farm Foods,09653F
Gloucester City Council,23UE,Client Revs & Bens Contract,RT240,Bailiffs Fees,5368,FEES & VAT DUE,22/09/2014,390695,351.36,NET,Bristow & Sutor,05450M
Gloucester City Council,23UE,Client Revs & Bens Contract,RT240,Bailiffs Fees,5368,VAT ON FEES,22/09/2014,390694,0,NET,Bristow & Sutor,05450M
Gloucester City Council,23UE,Council Streetcare Team,HI101,Maint Of Grounds - General,3030,KING GEORGE FIELD,22/09/2014,390438,289,NET,Enterprise (Aol) Ltd,06695G
Gloucester City Council,23UE,Council Streetcare Team,HI101,Maint Of Grounds - General,3030,MATSON,22/09/2014,390428,25,NET,Greenfields Garden Services Ltd,48130G
Gloucester City Council,23UE,Daniels Brook S106,LY120,Contract Payments,0020,DANIELS BROOK,22/09/2014,390460,589.2,CAP,Greenfields Garden Services Ltd,48130G
Gloucester City Council,23UE,Daniels Brook S106,LY120,Contract Payments,0020,DANIELS BROOK,22/09/2014,390461,4926.86,CAP,Greenfields Garden Services Ltd,48130G
Gloucester City Council,23UE,Daniels Brook S106,LY120,Contract Payments,0020,DANIELS BROOK,22/09/2014,390462,2142.75,CAP,Greenfields Garden Services Ltd,48130G
Gloucester City Council,23UE,Daniels Brook S106,LY120,Contract Payments,0020,DANIELS BROOK,22/09/2014,390492,2101.25,CAP,Greenfields Garden Services Ltd,48130G
Gloucester City Council,23UE,Daniels Brook S106,LY120,Contract Payments,0020,DANIELS BROOK,22/09/2014,390493,3653.12,CAP,Greenfields Garden Services Ltd,48130G
Gloucester City Council,23UE,Daniels Brook S106,LY120,Contract Payments,0020,DANIELS BROOK,22/09/2014,390539,248,CAP,Greenfields Garden Services Ltd,48130G
Gloucester City Council,23UE,Daniels Brook S106,LY120,Contract Payments,0020,"Daniels Brook, railings",22/09/2014,389345,729.53,CAP,Greenfields Garden Services Ltd,48130G
Gloucester City Council,23UE,REDACTED,REDACTED,REDACTED,REDACTED,REDACTED,22/09/2014,REDACTED,86,NET,REDACTED,REDACTED
Gloucester City Council,23UE,Development Management,PT200,Consultants Fees,5349,LAND EAST OF HEMPSTED LA,22/09/2014,390510,1560,NET,Wsp Uk Ltd,14184B
Gloucester City Council,23UE,Docks Complex - Telephones,RB120,Lease Lines,5411,Phone Call Charges July 2014,22/09/2014,389131,3948.11,NET,Gamma Business Communications,10260A
Gloucester City Council,23UE,Docks Complex - Telephones,RB120,Telephones And Fax,5410,Charges for June 2014,22/09/2014,387311,1934.47,NET,Everything Everywhere Ltd (T-Mobile),57543S
Gloucester City Council,23UE,Employers Pension Contribs,ZR355,Pension Contribs Incl Backf,2901,PENSION SCHEME AUG & SEP14,22/09/2014,390697,26352.21,NET,Gloucestershire County Council,10614L
Gloucester City Council,23UE,Financial Services,RT200,Training Course Fees,5367,CIT COURSE,22/09/2014,390450,399,NET,Zurich Management Services Limited,20229U
Gloucester City Council,23UE,Food Safety,HE100,Fees For Services Received,5350,SAMPLES,22/09/2014,390519,481.81,NET,Public Health England,04284P
Gloucester City Council,23UE,Gloucester Guildhall,LA100,Cleaning Materials,3600,CALLOUT,22/09/2014,389886,109.95,NET,Armstrong Commercial Laundry Systems,10886Y
Gloucester City Council,23UE,Gloucester Guildhall,LA100,Maintenance Of Equipment,5030,CALLOUT,22/09/2014,389886,180,NET,Armstrong Commercial Laundry Systems,10886Y
Gloucester City Council,23UE,REDACTED,REDACTED,REDACTED,REDACTED,REDACTED,22/09/2014,389349,50,NET,REDACTED,REDACTED
Gloucester City Council,23UE,REDACTED,REDACTED,REDACTED,REDACTED,REDACTED,22/09/2014,389350,50,NET,REDACTED,REDACTED
Gloucester City Council,23UE,Hackney Carriages,HL100,Fees For Services Received,5350,DVLA checks,22/09/2014,388705,43.5,NET,Intelligent Data Systems (Uk) Ltd,11067G
Gloucester City Council,23UE,Hackney Carriages,HL100,Fees For Services Received,5350,DVLA CHECKS,22/09/2014,390554,101.5,NET,Intelligent Data Systems (Uk) Ltd,11067G
Gloucester City Council,23UE,REDACTED,REDACTED,REDACTED,REDACTED,REDACTED,22/09/2014,390865,364.6,NET,REDACTED,REDACTED
Gloucester City Council,23UE,REDACTED,REDACTED,REDACTED,REDACTED,REDACTED,22/09/2014,390869,582.68,NET,REDACTED,REDACTED
Gloucester City Council,23UE,REDACTED,REDACTED,REDACTED,REDACTED,REDACTED,22/09/2014,390869,600,NET,REDACTED,REDACTED
Gloucester City Council,23UE,Kings Quarter,RY146,Contract Payments,0020,SUPPLY & INSTALL LEAD FLASHING,22/09/2014,390713,500,CAP,Wye Valley Demolition Ltd,07242C
Gloucester City Council,23UE,Kings Sq Paving Emerg Works,RY161,Contract Payments,0020,Kings Square 01/04 & 02/04 2014,22/09/2014,386835,744,CAP,Three Counties Drain Service,44033V
Gloucester City Council,23UE,REDACTED,REDACTED,REDACTED,REDACTED,REDACTED,22/09/2014,390868,54,NET,REDACTED,REDACTED
Gloucester City Council,23UE,REDACTED,REDACTED,REDACTED,REDACTED,REDACTED,22/09/2014,390867,37,NET,REDACTED,REDACTED
Gloucester City Council,23UE,Nms Contract,HI102,Contracted Services,6970,Domestic Waste Bins,22/09/2014,385935,7174.44,NET,Enterprise (Aol) Ltd,06695G
Gloucester City Council,23UE,Nms Contract,HI102,Contracted Services,6970,WHEELIE BINS,22/09/2014,390445,24382.04,NET,Enterprise (Aol) Ltd,06695G
Gloucester City Council,23UE,Parks Contract Management,LP100,Maint Of Grounds - General,3030,BIRCH AVE,22/09/2014,390447,209.52,NET,Enterprise (Aol) Ltd,06695G
Gloucester City Council,23UE,Parks Contract Management,LP100,Maint Of Grounds - General,3030,CORAL CLOSE,22/09/2014,390442,264.6,NET,Enterprise (Aol) Ltd,06695G
Gloucester City Council,23UE,Parks Contract Management,LP100,Maint Of Grounds - General,3030,KGV,22/09/2014,390504,142.56,NET,Enterprise (Aol) Ltd,06695G
Gloucester City Council,23UE,Parks Contract Management,LP100,Maint Of Grounds - General,3030,MANOR FARM,22/09/2014,390439,192.24,NET,Enterprise (Aol) Ltd,06695G
Gloucester City Council,23UE,Parks Contract Management,LP100,Maint Of Grounds - General,3030,MANOR FARM,22/09/2014,390444,251.64,NET,Enterprise (Aol) Ltd,06695G
Gloucester City Council,23UE,Parks Contract Management,LP100,Maint Of Grounds - General,3030,RANDWICK,22/09/2014,390440,183.6,NET,Enterprise (Aol) Ltd,06695G
Gloucester City Council,23UE,Parks Contract Management,LP100,Maint Of Grounds - General,3030,THE OVAL,22/09/2014,390441,367.2,NET,Enterprise (Aol) Ltd,06695G
Gloucester City Council,23UE,Retail Market - Landlord,HM300,Buildings Insurance,3800,Market Hall Insurance,22/09/2014,386406,1224.29,NET,Workman Llp,11021M
Gloucester City Council,23UE,Safer Stronger Communities,FP841,Other Minor Supplies Services,5590,PAWS ON PATROL,22/09/2014,390390,260.92,NET,"Police & Crime Commissioner, Gloucestershire",49521B
Gloucester City Council,23UE,Tourism Marketing,LT100,Buildings Insurance,3800,"28 Southgate Street, Insurance Premium",22/09/2014,387802,570.61,NET,P W Fido & Associates,01210A
Gloucester City Council,23UE,Tree Planting Grant Funded,LY150,Contract Payments,0020,GL1 AHU modifications,22/09/2014,389498,1215.5,CAP,Smith Consult Ltd,13842R
Gloucester City Council,23UE,Tree Planting Grant Funded,LY150,Contract Payments,0020,Summer Watering of trees in gloucester,22/09/2014,387951,30,CAP,Greenfields Garden Services Ltd,48130G
Gloucester City Council,23UE,Accelerator 1 Econ Challenge F,FP302,Other Minor Supplies Services,5590,Enterprise Club Meeting & Refreshments,23/09/2014,384127,71,NET,University Of Gloucestershire,57991H
Gloucester City Council,23UE,Business Support,PT250,Fuel,4012,Fuel,23/09/2014,391014,345.47,NET,Allstar Business Solutions Ltd (Arval),06594A
Gloucester City Council,23UE,Cemeteries,HC300,Vehicle Licences,4015,Vehicle Tax- VK61 HFN,23/09/2014,390928,225,NET,Post Office Ltd,48040J
Gloucester City Council,23UE,REDACTED,REDACTED,REDACTED,REDACTED,REDACTED,23/09/2014,REDACTED,70,NET,REDACTED,REDACTED
Gloucester City Council,23UE,Contact Centre,RB300,Basic Pay -Admin /Prof Staff,2601,TEMPORARY STAFF,23/09/2014,391054,814,NET,Cps Anystaff Recruitment Ltd,13945D
Gloucester City Council,23UE,Contact Centre,RB300,Basic Pay -Admin /Prof Staff,2601,TEMPORARY STAFF,23/09/2014,391055,330,NET,Cps Anystaff Recruitment Ltd,13945D
Gloucester City Council,23UE,Contact Centre,RB300,Basic Pay -Admin /Prof Staff,2601,TEMPORARY STAFF,23/09/2014,390139,280.72,NET,One To One Recruitment,04752H
Gloucester City Council,23UE,Crematorium,HC200,Fees For Services Received,5350,Doctors Fees August 2014,23/09/2014,390933,224.16,NET,Dr R W Bell,01571P
Gloucester City Council,23UE,Crematorium,HC200,Fees For Services Received,5350,Doctors Fees August 2014,23/09/2014,390931,1010.08,NET,Dr C M Stretton,00306P
Gloucester City Council,23UE,Crematorium,HC200,Fees For Services Received,5350,Doctors Fees August 2014,23/09/2014,390932,1076.64,NET,Dr D Martin,00890P
Gloucester City Council,23UE,Flooding And Drainage,HE306,Maint Of Grounds - General,3030,VEGETATION REMOVAL,23/09/2014,390419,630,NET,Rdb Safety Boat Ltd,13507J
Gloucester City Council,23UE,General Works Fund,RY203,Consultants Fees,0030,PPM survey OITC,23/09/2014,388558,6830,CAP,Sweett (Uk) Ltd,14770R
Gloucester City Council,23UE,Hempsted Market/Car Boot,HM234,Security Services Fees,5351,Security Staff Hempsted Meadow,23/09/2014,391060,1560,NET,Nsgl Ltd,12539E
Gloucester City Council,23UE,Homelessness,CH120,Basic Pay - Temporary Staff,2751,TEMPORARY STAFF,23/09/2014,390533,521.13,NET,James Andrews Recruitment Solutions,13636W
Gloucester City Council,23UE,REDACTED,REDACTED,REDACTED,REDACTED,REDACTED,23/09/2014,REDACTED,484.6,NET,REDACTED,REDACTED
Gloucester City Council,23UE,REDACTED,REDACTED,REDACTED,REDACTED,REDACTED,23/09/2014,REDACTED,500,NET,REDACTED,REDACTED
Gloucester City Council,23UE,Investment Property,RB500,General Repair/Maint Buildings,3000,EASTGATE MKT DRAIN CLEARANCE,23/09/2014,390716,185,NET,Three Counties Drain Service,44033V
Gloucester City Council,23UE,Investment Property,RB500,Lift Maintenance,3051,Engineer Herbet Warehouse Lifts,23/09/2014,391023,416.02,NET,Pickerings Europe Ltd*,58816U
Gloucester City Council,23UE,Legal Services,RS200,Basic Pay - Temporary Staff,2751,TEMPORARY STAFF,23/09/2014,391059,600,NET,Badenoch & Clark,01536P
Gloucester City Council,23UE,Licences,HE510,Gating Orders,5541,Organs Alley Gate,23/09/2014,389120,1472,NET,Greenfields Garden Services Ltd,48130G
Gloucester City Council,23UE,Nms Contract,HI102,Contracted Services,6970,Pension June 2014,23/09/2014,390188,10167.84,NET,Enterprise (Aol) Ltd,06695G
Gloucester City Council,23UE,REDACTED,REDACTED,REDACTED,REDACTED,REDACTED,23/09/2014,REDACTED,25,NET,REDACTED,REDACTED
Gloucester City Council,23UE,Play Area Refurbishment,LY071,Contract Payments,0020,PICNIC TABLE,23/09/2014,390403,370,CAP,Centrewire Ltd,54156P
Gloucester City Council,23UE,Rehousing,CH111,Basic Pay - Temporary Staff,2751,TEMPORARY STAFF,23/09/2014,390730,684,NET,Building Recruitment Company Ltd,55385E
Gloucester City Council,23UE,Retail Market - Landlord,HM300,Operational Equipment <5000,5012,recycling contribution charge,23/09/2014,387152,24.42,NET,City Electrical Factors*,09325C
Gloucester City Council,23UE,Shopmobility,PE200,Fees For Services Received,5350,Closed Circuit TV System,23/09/2014,389066,111.93,NET,Allcoopers Ltd,52921E
Gloucester City Council,23UE,Solace Project,FP843,Other Minor Supplies Services,5590,"August 2014, ASB Salary, Super, NI",23/09/2014,389871,3250,NET,Gloucester City Homes,05244T
Gloucester City Council,23UE,Tree Planting Grant Funded,LY150,Contract Payments,0020,Summer watering of trees in gloucester,23/09/2014,387950,30,CAP,Greenfields Garden Services Ltd,48130G
Gloucester City Council,23UE,Tree Planting Grant Funded,LY150,Contract Payments,0020,Summer Watering of trees in gloucester,23/09/2014,387949,30,CAP,Greenfields Garden Services Ltd,48130G
Gloucester City Council,23UE,REDACTED,REDACTED,REDACTED,REDACTED,REDACTED,23/09/2014,REDACTED,2250,NET,REDACTED,REDACTED
Gloucester City Council,23UE,REDACTED,REDACTED,REDACTED,REDACTED,REDACTED,23/09/2014,REDACTED,2300,NET,REDACTED,REDACTED
Gloucester City Council,23UE,Aspire Admin Charges,LC105,Security Services Fees,5351,Services October 2014,24/09/2014,391066,176.34,NET,G4s Cash Solutions (Uk) Ltd,04290V
Gloucester City Council,23UE,Asset Management,RS300,Vocational Training,2970,CPAS 30/09/2014,24/09/2014,391001,375,NET,Cipfa Business Limited,09260F
Gloucester City Council,23UE,Barbican House,RB506,General Repair/Maint Buildings,3000,1 Hour Cherry Picker,24/09/2014,391012,40,NET,REDACTED,REDACTED
Gloucester City Council,23UE,Building Control,PT400,Basic Pay - Temporary Staff,2751,TEMPORARY STAFF,24/09/2014,388511,2500,NET,Brg Interim Solutions,14065L
Gloucester City Council,23UE,Building Control,PT400,Basic Pay - Temporary Staff,2751,TEMPORARY STAFF,24/09/2014,388510,8.25,NET,Brg Interim Solutions,14065L
Gloucester City Council,23UE,Business Support,PT250,Fuel,4012,Fuel,24/09/2014,391013,264.33,NET,Allstar Business Solutions Ltd (Arval),06594A
Gloucester City Council,23UE,Business Transformation & Tech,RT700,Computer Software Maintenance,5427,Annual Support & Maintenance,24/09/2014,387889,1089.53,NET,Advanced Business Solutions,06072N
Gloucester City Council,23UE,Business Transformation & Tech,RT700,Computer Software Maintenance,5427,Annual Support & Maintenance Uploader,24/09/2014,387890,326.86,NET,Advanced Business Solutions,06072N
Gloucester City Council,23UE,Cems/Crems Admin,HC100,Security Services Fees,5351,Services October 2014,24/09/2014,391066,100.51,NET,G4s Cash Solutions (Uk) Ltd,04290V
Gloucester City Council,23UE,City Museum And Art Gallery,LM200,Security Services Fees,5351,Services October 2014,24/09/2014,391066,88.17,NET,G4s Cash Solutions (Uk) Ltd,04290V
Gloucester City Council,23UE,Civica Admin Charges,RT105,Fees For Services Received,5350,CHD,24/09/2014,390551,4,NET,Companies House,58954E
Gloucester City Council,23UE,Civica Admin Charges,RT105,Postages,5400,Post 01/09 - 12/09 2014,24/09/2014,391058,1201.1,NET,Royal Mail S.Wales & South West,35830S
Gloucester City Council,23UE,Civic Admin And Hospitality,RC210,Hire Of Taxis,4053,August 11 hours,24/09/2014,390989,275,NET,Chris Hall Chauffeuring,11660U
Gloucester City Council,23UE,Client Revs & Bens Contract,RT240,Security Services Fees,5351,Services October 2014,24/09/2014,391066,263.38,NET,G4s Cash Solutions (Uk) Ltd,04290V
Gloucester City Council,23UE,Contact Centre,RB300,Basic Pay -Admin /Prof Staff,2601,TEMPORARY STAFF,24/09/2014,391033,350.9,NET,One To One Recruitment,04752H
Gloucester City Council,23UE,Contact Centre,RB300,Basic Pay -Admin /Prof Staff,2601,TEMPORARY STAFF,24/09/2014,391065,191.4,NET,One To One Recruitment,04752H
Gloucester City Council,23UE,Contact Centre,RB300,Basic Pay -Admin /Prof Staff,2601,TEMPORARY STAFF,24/09/2014,391019,421.08,NET,One To One Recruitment,04752H
Gloucester City Council,23UE,Development Management,PT200,Advertising And Publicity,5702,Advertisement 11/09/2014,24/09/2014,390993,204.51,NET,Local World Ltd,08556P
Gloucester City Council,23UE,Docks Complex - Telephones,RB120,Telephones And Fax,5410,Monthly Plan Charges,24/09/2014,387343,66.03,NET,Everything Everywhere Ltd (T-Mobile),57543S
Gloucester City Council,23UE,Dwelling Improvements,BY008,Contract Payments,0020,CAPITAL FEE,24/09/2014,390426,447850.17,CAP,Gloucester City Homes,05244T
Gloucester City Council,23UE,Economic Development,FP300,Other Minor Supplies Services,5590,refreshments,24/09/2014,388815,315,NET,University Of Gloucestershire,57991H
Gloucester City Council,23UE,Electrical Investigatory Works,RY142,Contract Payments,0020,TEST,24/09/2014,390464,944,CAP,Brooke Edgeley Specialist Technical Services,03873X
Gloucester City Council,23UE,Environmental Planning,LM340,Fees For Services Received,5350,Advertisement 09/09/2014,24/09/2014,390994,204.51,NET,Local World Ltd,08556P
Gloucester City Council,23UE,Equalities,EH102,Fees For Services Received,5350,Subscription Rate 14/15,24/09/2014,390980,38,NET,Gloucestershire Resource Centre Ltd,51954Y
Gloucester City Council,23UE,Folk Museum,LM210,Security Services Fees,5351,Services October 2014,24/09/2014,391066,88.17,NET,G4s Cash Solutions (Uk) Ltd,04290V
Gloucester City Council,23UE,General Drainage Works,PY241,Contract Payments,0020,RAINGARDENS,24/09/2014,390502,4800,CAP,Robert Bray Associates Ltd,10605M
Gloucester City Council,23UE,REDACTED,REDACTED,REDACTED,REDACTED,REDACTED,24/09/2014,REDACTED,140,NET,REDACTED,REDACTED
Gloucester City Council,23UE,Gloucester Guildhall,LA100,Security Services Fees,5351,Services October 2014,24/09/2014,391066,88.17,NET,G4s Cash Solutions (Uk) Ltd,04290V
Gloucester City Council,23UE,REDACTED,REDACTED,REDACTED,REDACTED,REDACTED,24/09/2014,REDACTED,100,NET,REDACTED,REDACTED
Gloucester City Council,23UE,REDACTED,REDACTED,REDACTED,REDACTED,REDACTED,24/09/2014,REDACTED,200,NET,REDACTED,REDACTED
Gloucester City Council,23UE,REDACTED,REDACTED,REDACTED,REDACTED,REDACTED,24/09/2014,REDACTED,121,NET,REDACTED,REDACTED
Gloucester City Council,23UE,REDACTED,REDACTED,REDACTED,REDACTED,REDACTED,24/09/2014,REDACTED,120,NET,REDACTED,REDACTED
Gloucester City Council,23UE,REDACTED,REDACTED,REDACTED,REDACTED,REDACTED,24/09/2014,REDACTED,110,NET,REDACTED,REDACTED
Gloucester City Council,23UE,Hackney Carriages,HL100,Fees For Services Received,5350,JULY 2014 DBS checks,24/09/2014,388507,528,NET,Disclosure And Barring Service,00119W
Gloucester City Council,23UE,Hackney Carriages,HL100,Fees For Services Received,5350,June 2014,24/09/2014,386959,440,NET,Disclosure And Barring Service,00119W
Gloucester City Council,23UE,Improvement Grants,CI110,Other Minor Supplies Services,5590,SUPPORT OCT 14- OCT 15,24/09/2014,390397,289,NET,Ferret Information Systems Ltd,15035L
Gloucester City Council,23UE,Investment Property,RB500,General Repair/Maint Buildings,3000,Remove two plants,24/09/2014,389516,40,NET,REDACTED,REDACTED
Gloucester City Council,23UE,Investment Property,RB500,Lift Maintenance,3051,"Engineer Eastgate Market, 28/07/2014",24/09/2014,390973,115.28,NET,Pickerings Europe Ltd*,58816U
Gloucester City Council,23UE,Investment Property,RB500,Lift Maintenance,3051,"Engineer Guildhall Lifts, 23/07/2014",24/09/2014,390972,114.87,NET,Pickerings Europe Ltd*,58816U
Gloucester City Council,23UE,Investment Property,RB500,Maint Of Grounds - General,3030,"City Museum, Clean up",24/09/2014,390978,200,NET,Rj Contracting (Environmental) Ltd,07429H
Gloucester City Council,23UE,Investment Property,RB500,Repair/Maint Of Fixed Plant,3006,"Call Out Guildhall, 13/08/2014",24/09/2014,391039,413,NET,Airvent Systems Limited,51073T
Gloucester City Council,23UE,Investment Property,RB500,Repair/Maint Of Fixed Plant,3006,"Engineers Eastgate Market, 29/08/2014",24/09/2014,391037,676.5,NET,Airvent Systems Limited,51073T
Gloucester City Council,23UE,Investment Property,RB500,Repair/Maint Of Fixed Plant,3006,Engineers Guildhall 11/08/2014,24/09/2014,391038,340,NET,Airvent Systems Limited,51073T
Gloucester City Council,23UE,Kings Quarter,RY146,Contract Payments,0020,Taxi Rank Work,24/09/2014,391067,13069.76,CAP,Ken Pink Plant Hire Ltd,56884V
Gloucester City Council,23UE,Kings Sq Paving Emerg Works,RY161,Contract Payments,0020,Removal of Heras Hoarding Panels,24/09/2014,391056,527.56,CAP,Anderson Civil Engineering Uk Ltd,09083D
Gloucester City Council,23UE,Nms Contract,HI102,Contracted Services,6970,Pension July 2014,24/09/2014,390987,11032.54,NET,Enterprise (Aol) Ltd,06695G
Gloucester City Council,23UE,Off Street Car Parks,PP110,Rents,3200,GT WESTERN RD CAR PARK RENT SEP-DEC14,24/09/2014,390696,118.75,NET,Telereal Services Ltd,15121I
Gloucester City Council,23UE,Planning Policy,PT300,Basic Pay - Temporary Staff,2751,TEMPORARY STAFF,24/09/2014,390983,1771.2,NET,The Oyster Partnership Limited,14900T
Gloucester City Council,23UE,Planning Policy,PT300,Basic Pay - Temporary Staff,2751,TEMPORARY STAFF,24/09/2014,390982,1750,NET,The Oyster Partnership Limited,14900T
Gloucester City Council,23UE,Planning Policy,PT300,Basic Pay - Temporary Staff,2751,TEMPORARY STAFF,24/09/2014,390986,1755,NET,The Oyster Partnership Limited,14900T
Gloucester City Council,23UE,Planning Policy,PT300,Basic Pay - Temporary Staff,2751,TEMPORARY STAFF,24/09/2014,390984,1753.2,NET,The Oyster Partnership Limited,14900T
Gloucester City Council,23UE,Planning Policy,PT300,Basic Pay - Temporary Staff,2751,TEMPORARY STAFF,24/09/2014,390985,1755,NET,The Oyster Partnership Limited,14900T
Gloucester City Council,23UE,Postal Services,RS120,Postages,5400,Post 08/08 - 21/08 2014,24/09/2014,390013,1770.46,NET,Royal Mail S.Wales & South West,35830S
Gloucester City Council,23UE,Stationery Services,RS150,Stationery,5302,XEROX 90GM,24/09/2014,390709,23.55,NET,Stanford Marsh Ltd*,51139M
Gloucester City Council,23UE,St Michaels Tower,GY016,Contract Payments,0020,CDM St Michaels Tower,24/09/2014,388107,337.5,CAP,Goddard Consulting Llp,10598G
Gloucester City Council,23UE,Summer Festival,LT300,Artists Fees,5355,Carnival Arts Programme 2013,24/09/2014,391004,1414,NET,Gloucestershire Dance,01965K
Gloucester City Council,23UE,Summer Festival,LT300,Fees For Services Received,5350,Carnival Programme July 2014,24/09/2014,391003,5000,NET,Gloucestershire Dance,01965K
Gloucester City Council,23UE,The Arbor,HC501,Catering Provisions -Food,5110,Food w/e 14/09/2014,24/09/2014,391010,113.23,NET,Janes Pantry,24500W
Gloucester City Council,23UE,Tourism Marketing,LT100,Security Services Fees,5351,Services October 2014,24/09/2014,391066,88.17,NET,G4s Cash Solutions (Uk) Ltd,04290V
Gloucester City Council,23UE,Aspire Admin Charges,LC105,Other Minor Income,9900,BAILIFF PAYMENTS 05/09/14,25/09/2014,391172,16.2,NET,Aspire Sports & Cultural Trust,08135V
Gloucester City Council,23UE,Asset Management,RS300,Basic Pay - Temporary Staff,2751,TEMPORARY STAFF,25/09/2014,391044,1128.5,NET,Hays Specialist Recruitment,04355S
Gloucester City Council,23UE,Asset Management,RS300,Basic Pay - Temporary Staff,2751,TEMPORARY STAFF,25/09/2014,391047,5.85,NET,Hays Specialist Recruitment Ltd,55516P
Gloucester City Council,23UE,Asset Management,RS300,Basic Pay - Temporary Staff,2751,TEMPORARY STAFF,25/09/2014,391049,1212.38,NET,Hays Specialist Recruitment Ltd,55516P
Gloucester City Council,23UE,Asset Management,RS300,Basic Pay - Temporary Staff,2751,TEMPORARY STAFF,25/09/2014,391046,640.5,NET,Hays Specialist Recruitment,04355S
Gloucester City Council,23UE,Asset Management,RS300,Basic Pay - Temporary Staff,2751,TEMPORARY STAFF,25/09/2014,391050,1342,NET,Hays Specialist Recruitment Ltd,55516P
Gloucester City Council,23UE,Asset Management,RS300,Basic Pay - Temporary Staff,2751,TEMPORARY STAFF,25/09/2014,391048,14.4,NET,Hays Specialist Recruitment Ltd,55516P
Gloucester City Council,23UE,Asset Management,RS300,Basic Pay - Temporary Staff,2751,TEMPORARY STAFF,25/09/2014,391051,1212.38,NET,Hays Specialist Recruitment Ltd,55516P
Gloucester City Council,23UE,Asset Management,RS300,Basic Pay - Temporary Staff,2751,TEMPORARY STAFF,25/09/2014,391045,1250.5,NET,Hays Specialist Recruitment Ltd,55516P
Gloucester City Council,23UE,REDACTED,REDACTED,REDACTED,REDACTED,REDACTED,25/09/2014,REDACTED,12,NET,REDACTED,REDACTED
Gloucester City Council,23UE,Bus Station,RB400,Water Supply,3400,ACCT 7890105225,25/09/2014,390698,174.05,NET,Severn Trent Water,01823H
Gloucester City Council,23UE,Civil Parking Enforcement,PT741,Basic Pay - Temporary Staff,2751,TEMPORARY STAFF,25/09/2014,391031,2400,NET,Unity Recruitment,14857S
Gloucester City Council,23UE,Civil Parking Enforcement,PT741,Basic Pay - Temporary Staff,2751,TEMPORARY STAFF,25/09/2014,391053,2400,NET,Unity Recruitment,14857S
Gloucester City Council,23UE,Client Revs & Bens Contract,RT240,Bailiffs Fees,5368,VAT due on statutory fees,25/09/2014,390953,0,NET,Bristow & Sutor,05450M
Gloucester City Council,23UE,Client Revs & Bens Contract,RT240,Bailiffs Fees,5368,VAT due on statutory fees,25/09/2014,390954,1673.88,NET,Bristow & Sutor,05450M
Gloucester City Council,23UE,Client Revs & Bens Contract,RT240,Bailiffs Fees,5368,VAT on fees collected,25/09/2014,390966,0,NET,Phoenix Commercial Collections Ltd,13435J
Gloucester City Council,23UE,Client Revs & Bens Contract,RT240,Bailiffs Fees,5368,VAT on fees collected,25/09/2014,390967,0,NET,Phoenix Commercial Collections Ltd,13435J
Gloucester City Council,23UE,Council Streetcare Team,HI101,Water Supply,3400,ACCT 7890105225,25/09/2014,390698,402.41,NET,Severn Trent Water,01823H
Gloucester City Council,23UE,Countryside Unit,LP201,Contract Cleaning,3620,Cleaning Rangers Office,25/09/2014,390977,130,NET,Cv Fisher Cleaning Services,14907C
Gloucester City Council,23UE,Crematorium,HC200,National Assist Act Burial Exp,5593,Contract,25/09/2014,390949,623,NET,Selim Smith & Co Funeral Directors,15156X
Gloucester City Council,23UE,Crematorium,HC200,Repair/Maint Of Fixed Plant,3006,Collection of Waste 09/09/2014,25/09/2014,390968,1403.87,NET,Facultatieve Technologies Ltd,51210H
Gloucester City Council,23UE,Crematorium,HC200,Repair/Maint Of Monuments,3004,Addition to Sanctum,25/09/2014,390950,249,NET,The Columbaria Company,55078T
Gloucester City Council,23UE,Crematorium,HC200,Water Supply,3400,ACCT 7890105225,25/09/2014,390698,38.78,NET,Severn Trent Water,01823H
Gloucester City Council,23UE,Development Management,PT200,Application Fees,9312,00/00749/OUT Application not required,25/09/2014,391169,97,NET,Pegasus Planning Group Ltd,02242B
Gloucester City Council,23UE,Development Management,PT200,Application Fees,9312,06/01242/OUT Application not required,25/09/2014,391168,97,NET,Pegasus Planning Group Ltd,02242B
Gloucester City Council,23UE,Development Management,PT200,Consultants Fees,5349,Professional Time,25/09/2014,390959,9132.2,NET,Dpds Ltd,05404V
Gloucester City Council,23UE,Docks Complex - Services,RB100,Cleaning Materials,3600,Cleaning Materials,25/09/2014,390942,52.31,NET,Core Hygiene Ltd,03885P
Gloucester City Council,23UE,Docks Complex - Services,RB100,Cleaning Materials,3600,Cleaning Materials,25/09/2014,390943,43.55,NET,Core Hygiene Ltd,03885P
Gloucester City Council,23UE,Electrical Investigatory Works,RY142,Capital Fire Alarms,0025,Inspection of fire alarm,25/09/2014,388336,55,CAP,A & E Fire Equipment Limited,54289L
Gloucester City Council,23UE,Electrical Investigatory Works,RY142,Capital Fire Equipment,0016,Fire Extinguisher Inspection,25/09/2014,390955,3,CAP,A & E Fire Equipment Limited,54289L
Gloucester City Council,23UE,Electrical Investigatory Works,RY142,Contract Payments,0020,6ltr Water Extinguisher Refilled,25/09/2014,390956,15.3,CAP,A & E Fire Equipment Limited,54289L
Gloucester City Council,23UE,Electrical Investigatory Works,RY142,Contract Payments,0020,Inspections,25/09/2014,387775,334.44,CAP,A & E Fire Equipment Limited,54289L
Gloucester City Council,23UE,Electrical Investigatory Works,RY142,Contract Payments,0020,Major inspection of dry risers,25/09/2014,388388,275,CAP,A & E Fire Equipment Limited,54289L
Gloucester City Council,23UE,Environmental Planning,LM340,Exhibits And Collections,5038,Survey Robinswood Hill,25/09/2014,390969,1925,NET,A J Roberts T/A Archeoscan,14562R
Gloucester City Council,23UE,Environmental Planning,LM340,Fees For Services Received,5350,Advertisement 08/09/2014,25/09/2014,390995,233.73,NET,Local World Ltd,08556P
Gloucester City Council,23UE,REDACTED,REDACTED,REDACTED,REDACTED,REDACTED,25/09/2014,REDACTED,90,NET,REDACTED,REDACTED
Gloucester City Council,23UE,Financial Services,RT200,Fees For Services Received,5350,"salary calculation ""fusion"" project",25/09/2014,383293,30193,NET,Gloucestershire County Council,18650D
Gloucester City Council,23UE,General Works Fund,RY203,Consultants Fees,0030,TEMPORARY STAFF,25/09/2014,391057,1320.5,CAP,Find The Engineer Recruitment Ltd*,12977Z
Gloucester City Council,23UE,REDACTED,REDACTED,REDACTED,REDACTED,REDACTED,25/09/2014,REDACTED,106.13,NET,REDACTED,REDACTED
Gloucester City Council,23UE,REDACTED,REDACTED,REDACTED,REDACTED,REDACTED,25/09/2014,REDACTED,100,NET,REDACTED,REDACTED
Gloucester City Council,23UE,REDACTED,REDACTED,REDACTED,REDACTED,REDACTED,25/09/2014,REDACTED,200,NET,REDACTED,REDACTED
Gloucester City Council,23UE,REDACTED,REDACTED,REDACTED,REDACTED,REDACTED,25/09/2014,REDACTED,200,NET,REDACTED,REDACTED
Gloucester City Council,23UE,REDACTED,REDACTED,REDACTED,REDACTED,REDACTED,25/09/2014,REDACTED,500,NET,REDACTED,REDACTED
Gloucester City Council,23UE,Health Administration,HA200,Vocational Training,2970,Mobile Homes Act Presentation/Training,25/09/2014,390948,160,NET,Forest Of Dean District Council,15985W
Gloucester City Council,23UE,Hempsted Market/Car Boot,HM234,Hire Of Equipment,5020,32' Portable Office,25/09/2014,390027,254.19,NET,Portable Offices (Hire ) Ltd*,06286R
Gloucester City Council,23UE,Hkp Accomodation Review,RY163,Contract Payments,0020,"Flooring, 5th floor philpotts",25/09/2014,390951,4490,CAP,D&D Flooring,12793M
Gloucester City Council,23UE,Hkp Accomodation Review,RY163,Contract Payments,0020,"Flooring, IT training suite",25/09/2014,390944,780,CAP,D&D Flooring,12793M
Gloucester City Council,23UE,Homelessness,CH120,Basic Pay - Temporary Staff,2751,TEMPORARY STAFF,25/09/2014,390997,526.51,NET,James Andrews Recruitment Solutions,13636W
Gloucester City Council,23UE,Human Resources,EH100,Fees For Services Received,5350,Payroll Charges May 2014,25/09/2014,385416,3067.74,NET,Gloucestershire County Council,18650D
Gloucester City Council,23UE,Internal Audit,RT300,Basic Pay - Temporary Staff,2751,TEMPORARY STAFF,25/09/2014,390957,652.5,NET,Robert Half Ltd,03959K
Gloucester City Council,23UE,Internal Audit,RT300,Basic Pay - Temporary Staff,2751,TEMPORARY STAFF,25/09/2014,390958,1073,NET,Robert Half Ltd,03959K
Gloucester City Council,23UE,Investment Property,RB500,Water Supply,3400,ACCT 7890105225,25/09/2014,390698,310.11,NET,Severn Trent Water,01823H
Gloucester City Council,23UE,Kings Quarter,RY146,Contract Payments,0020,KINGS SQUARE,25/09/2014,390475,14250,CAP,Cotswold Archaeology Ltd,09180E
Gloucester City Council,23UE,Kings Quarter,RY146,Contract Payments,0020,KINGS SQUARE,25/09/2014,390474,1192.5,CAP,Cotswold Archaeology Ltd,09180E
Gloucester City Council,23UE,Off Street Car Parks,PP110,Rents,3200,RENT SEPT - DEC 2014,25/09/2014,390374,600,NET,Boots The Chemist,04540V
Gloucester City Council,23UE,Off Street Car Parks,PP110,Water Supply,3400,ACCT 7890105225,25/09/2014,390698,1743.53,NET,Severn Trent Water,01823H
Gloucester City Council,23UE,Parks Contract Management,LP100,Maint Of Grounds - General,3030,Scott Avenue Play Area,25/09/2014,390952,106.92,NET,Enterprise (Aol) Ltd,06695G
Gloucester City Council,23UE,Pollution Control,HE300,Fees For Services Received,5350,No2 Tube 20% Tea/Water,25/09/2014,390945,111.15,NET,Gradko International Ltd,11063B
Gloucester City Council,23UE,Postal Services,RS120,Postages,5400,Post 09/08 - 23/08 2014,25/09/2014,391043,221.23,NET,Royal Mail S.Wales & South West,35830S
Gloucester City Council,23UE,Postal Services,RS120,Postages,5400,Post 22/08 - 04/09 2014,25/09/2014,391018,1342.72,NET,Royal Mail S.Wales & South West,35830S
Gloucester City Council,23UE,Public Conveniences (Client),HI400,Water Supply,3400,ACCT 7890105225,25/09/2014,390698,174.05,NET,Severn Trent Water,01823H
Gloucester City Council,23UE,Rehousing,CH111,Basic Pay - Temporary Staff,2751,TEMPORARY STAFF,25/09/2014,391061,690.5,NET,Building Recruitment Company Ltd,55385E
Gloucester City Council,23UE,Rehousing,CH111,Basic Pay - Temporary Staff,2751,TEMPORARY STAFF,25/09/2014,391035,503.5,NET,Building Recruitment Company Ltd,55385E
Gloucester City Council,23UE,Rehousing,CH111,Fees For Services Received,5350,Medical Letter,25/09/2014,390936,20,NET,Dr P Lush & Partners,05680S
Gloucester City Council,23UE,Retail Market - Landlord,HM300,Operational Equipment <5000,5012,Rental P75s compactor September 2014,25/09/2014,390026,280.56,NET,System Rental Uk Ltd,03239E
Gloucester City Council,23UE,Shopmobility,PE200,Water Supply,3400,ACCT 7890105225,25/09/2014,390698,147.1,NET,Severn Trent Water,01823H
Gloucester City Council,23UE,Stationery Services,RS150,Stationery,5302,Stationary,25/09/2014,391028,150.11,NET,Lyreco Uk Ltd,11746G
Gloucester City Council,23UE,REDACTED,REDACTED,REDACTED,REDACTED,REDACTED,25/09/2014,REDACTED,375,NET,REDACTED,REDACTED
Gloucester City Council,23UE,REDACTED,REDACTED,REDACTED,REDACTED,REDACTED,25/09/2014,REDACTED,-31.25,NET,REDACTED,REDACTED
Gloucester City Council,23UE,Utilities,PT502,Electricity Supply,3110,BARBICAN HOUSE,25/09/2014,391100,150.61,NET,West Mercia Energy,11669Z
Gloucester City Council,23UE,Utilities,PT502,Electricity Supply,3110,UTILITIES TO SEP 2014,25/09/2014,391101,27862.45,NET,West Mercia Energy,11669Z
Gloucester City Council,23UE,Utilities,PT502,Electricity Supply,3110,UTILITIES TO SEPT 2014,25/09/2014,391102,7995.69,NET,West Mercia Energy,11669Z
Gloucester City Council,23UE,Utilities,PT502,Gas Supply,3100,UTILITIES TO SEPT 2014,25/09/2014,391102,17344.81,NET,West Mercia Energy,11669Z
Gloucester City Council,23UE,Westgate Leisure Area S106,LY155,Contract Payments,0020,Consultant & Design Fee,25/09/2014,390964,256.8,CAP,Trax S N Jenks,04966D
Gloucester City Council,23UE,Client Revs & Bens Contract,RT240,Court Fees,5358,Warrants 22/09/14 Chelt & 26/8/14 Glos,26/09/2014,391296,1035,NET,Hmcts,05407N
Gloucester City Council,23UE,REDACTED,REDACTED,REDACTED,REDACTED,REDACTED,26/09/2014,REDACTED,270,NET,REDACTED,REDACTED
Gloucester City Council,23UE,Homelessness,CH120,Rent In Advance,5516,RIA,26/09/2014,391297,267.68,NET,2 Let Glos Ltd,74622M
Gloucester City Council,23UE,Homelessness,CH120,Rent In Advance,5516,RIA,26/09/2014,391298,267.68,NET,2 Let Glos Ltd,74622M
Gloucester City Council,23UE,Off Street Car Parks,PP110,Rents,3200,CAR PARK OFFICE,26/09/2014,390452,125,NET,Workman Llp,11021M
Gloucester City Council,23UE,Off Street Car Parks,PP110,Rents,3200,EASTGATE SHOPPING CTR CAR PARK,26/09/2014,390453,63654.19,NET,Workman Llp,11021M
Gloucester City Council,23UE,Off Street Car Parks,PP110,Service Charges,3020,CAR PARK OFFICE,26/09/2014,390452,267.75,NET,Workman Llp,11021M
Gloucester City Council,23UE,Off Street Car Parks,PP110,Service Charges,3020,EASTGATE SHOPPING CTR CAR PARK,26/09/2014,390453,1957.5,NET,Workman Llp,11021M
Gloucester City Council,23UE,Superbreak,LT104,Materials For Sale,5080,02/12/2014 tickets,26/09/2014,390963,317.6,NET,Superbreak Mini Holidays,00712D
Gloucester City Council,23UE,Superbreak,LT104,Sale Of Goods And Services,9230,02/12/2014 tickets,26/09/2014,390963,-26.46,NET,Superbreak Mini Holidays,00712D
Gloucester City Council,23UE,Theatre Tokens,LT106,Materials For Sale,5080,Tickets August 2014,26/09/2014,391042,165,NET,Society Of London Theatre,05656Z
Gloucester City Council,23UE,Theatre Tokens,LT106,Sale Of Goods And Services,9230,Tickets August 2014,26/09/2014,391042,-8.25,NET,Society Of London Theatre,05656Z
Gloucester City Council,23UE,REDACTED,REDACTED,REDACTED,REDACTED,REDACTED,29/09/2014,REDACTED,136.95,NET,REDACTED,REDACTED
Gloucester City Council,23UE,City Museum And Art Gallery,LM200,Publications For Sale,5064,Jigsaws,29/09/2014,390960,156.4,NET,Alphabet Jigsaws,14247C
Gloucester City Council,23UE,Disabled Facilities Grants,CY013,Disabled Facility Grants,0074,GRANT,29/09/2014,391020,11400,CAP,T & P Franklin & Sons Ltd,16150A
Gloucester City Council,23UE,Flood Defence Grants To Househ,CY011,Disabled Facility Grants,0074,GRANT,29/09/2014,387503,7457.5,CAP,Snape Construction Ltd,40958T
Gloucester City Council,23UE,Folk Museum,LM210,Publications For Sale,5064,Jigsaws,29/09/2014,390960,49,NET,Alphabet Jigsaws,14247C
Gloucester City Council,23UE,Group Mgr Planning & Economy,GR101,Basic Pay - Temporary Staff,2751,TEMPORARY STAFF,29/09/2014,387505,2475,NET,Randstad Cpe Ltd,13987L
Gloucester City Council,23UE,Group Mgr Planning & Economy,GR101,Basic Pay - Temporary Staff,2751,TEMPORARY STAFF,29/09/2014,389388,2475,NET,Randstad Cpe Ltd,13987L
Gloucester City Council,23UE,Group Mgr Planning & Economy,GR101,Basic Pay - Temporary Staff,2751,TEMPORARY STAFF,29/09/2014,387886,2475,NET,Randstad Cpe Ltd,13987L
Gloucester City Council,23UE,Group Mgr Planning & Economy,GR101,Basic Pay - Temporary Staff,2751,TEMPORARY STAFF,29/09/2014,388814,2475,NET,Randstad Cpe Ltd,13987L
Gloucester City Council,23UE,Group Mgr Planning & Economy,GR101,Basic Pay - Temporary Staff,2751,TEMPORARY STAFF,29/09/2014,388396,2475,NET,Randstad Cpe Ltd,13987L
Gloucester City Council,23UE,Guildhall Bar And Caf�,LA210,Hire Of Equipment,5020,coffee machine service,29/09/2014,391233,200,NET,Hoffs (Uk) Ltd,15003A
Gloucester City Council,23UE,REDACTED,REDACTED,REDACTED,REDACTED,REDACTED,29/09/2014,REDACTED,320.51,NET,REDACTED,REDACTED
Gloucester City Council,23UE,Off Street Car Parks,PP110,General Repair/Maint Buildings,3000,Cable Ties,29/09/2014,391070,15,NET,Ermin Plant Hire & Services Ltd,14150V
Gloucester City Council,23UE,Registration Of Electors,RS400,Fees For Services Received,5350,AUG 2014,29/09/2014,390379,235,NET,Armstrong Removals,04632N
Gloucester City Council,23UE,REDACTED,REDACTED,REDACTED,REDACTED,REDACTED,29/09/2014,REDACTED,16,NET,REDACTED,REDACTED
Gloucester City Council,23UE,REDACTED,REDACTED,REDACTED,REDACTED,REDACTED,29/09/2014,REDACTED,-0.67,NET,REDACTED,REDACTED
Gloucester City Council,23UE,REDACTED,REDACTED,REDACTED,REDACTED,REDACTED,29/09/2014,REDACTED,8.5,NET,REDACTED,REDACTED
Gloucester City Council,23UE,Aspire Admin Charges,LC105,Other Minor Income,9900,BAILIFF PAYMENTS 12/09/14,30/09/2014,391333,103.6,NET,Aspire Sports & Cultural Trust,08135V
Gloucester City Council,23UE,Asset Management,RS300,Survey Fees,5381,Eastgate Shopping Centre,30/09/2014,389842,7830,NET,Parsons Brinckerhoff Ltd*,56687Z
Gloucester City Council,23UE,Business Transformation & Tech,RT700,Computer Consumables,5422,Various Items,30/09/2014,391008,1284.85,NET,Rocom,56066R
Gloucester City Council,23UE,Business Transformation & Tech,RT700,Computer Software <5000,5425,Various Items,30/09/2014,391000,572.95,NET,Dell Computers Corporation Ltd,55920C
Gloucester City Council,23UE,Civica It Contract,RT270,Contracted Services,6970,IT OCT 2014,30/09/2014,389847,47916.66,NET,Civica Uk Ltd,10841X
Gloucester City Council,23UE,Docks Complex - Catering Servs,RB110,Catering Provisions -Food,5110,FOOD,30/09/2014,390750,8.7,NET,Total Produce Gloucester,12645E
Gloucester City Council,23UE,Docks Complex - Catering Servs,RB110,Catering Provisions -Food,5110,Food w/e 31/08/2014,30/09/2014,390023,60.14,NET,Janes Pantry,24500W
Gloucester City Council,23UE,Docks Complex - Services,RB100,Recycling,3631,Recycling,30/09/2014,390035,43,NET,Printwaste Recycling,57114W
Gloucester City Council,23UE,Docks Complex - Services,RB100,Recycling,3631,Shredding & Recycling,30/09/2014,390100,129.3,NET,Printwaste Recycling,57114W
Gloucester City Council,23UE,REDACTED,REDACTED,REDACTED,REDACTED,REDACTED,30/09/2014,REDACTED,4452.63,NET,REDACTED,REDACTED
Gloucester City Council,23UE,REDACTED,REDACTED,REDACTED,REDACTED,REDACTED,30/09/2014,REDACTED,484.6,NET,REDACTED,REDACTED
Gloucester City Council,23UE,REDACTED,REDACTED,REDACTED,REDACTED,REDACTED,30/09/2014,REDACTED,525,NET,REDACTED,REDACTED
Gloucester City Council,23UE,Marketing Gloucester Charges,RC433,Contracted Services,6970,Funding for Staff 2014-15,30/09/2014,385329,29000,NET,Marketing Gloucester Ltd,08925E
Gloucester City Council,23UE,The Arbor,HC501,Catering Provisions -Food,5110,Food w/e 10/08/2014,30/09/2014,389054,61.85,NET,Janes Pantry,24500W
Gloucester City Council,23UE,The Arbor,HC501,Catering Provisions -Food,5110,Food w/e 24/08/2014,30/09/2014,389640,107.58,NET,Janes Pantry,24500W
Gloucester City Council,23UE,The Arbor,HC501,Catering Provisions -Food,5110,Food w/e 31/08/2014,30/09/2014,390022,169.76,NET,Janes Pantry,24500W
Gloucester City Council,23UE,Business Support,PT250,Basic Pay - Cleaners,2401,Repairs,,391234,117,NET,Blade Motor Company,13671U
Gloucester City Council,23UE,Business Support,PT250,Routine R And M - Vehicles,4011,Repairs,,391234,191.14,NET,Blade Motor Company,13671U
Gloucester City Council,23UE,Contact Centre,RB300,Uniforms,5201,Long Scarf,,389505,6.95,NET,Meltemi Company Clothing Limited,54572N
Gloucester City Council,23UE,Docks Complex - Telephones,RB120,Telephones And Fax,5410,Blueyonder Multiple User August 14,,387961,80,NET,Virgin Media Payments Ltd,09376J
Gloucester City Council,23UE,Docks Complex - Telephones,RB120,Telephones And Fax,5410,Blueyonder Multiple User Charges Aug 14,,389137,80,NET,Virgin Media Payments Ltd,09376J
Gloucester City Council,23UE,Docks Complex - Telephones,RB120,Telephones And Fax,5410,Blueyonder Multiple User Jul-Aug 14,,387799,80,NET,Virgin Media Payments Ltd,09376J
Gloucester City Council,23UE,Docks Complex - Telephones,RB120,Telephones And Fax,5410,"Blueyonder Multiple User, September 2014",,390017,80,NET,Virgin Media Payments Ltd,09376J
Gloucester City Council,23UE,Docks Complex - Telephones,RB120,Telephones And Fax,5410,Broadband Charges August 2014,,389078,39,NET,Virgin Media Payments Ltd,09376J
Gloucester City Council,23UE,Docks Complex - Telephones,RB120,Telephones And Fax,5410,Broadband Cllr James June- Jul,,385430,30,NET,Virgin Media Payments Ltd,09376J
Gloucester City Council,23UE,Docks Complex - Telephones,RB120,Telephones And Fax,5410,Business Broadband Jul- Aug,,387273,39,NET,Virgin Media Payments Ltd,09376J
Gloucester City Council,23UE,Docks Complex - Telephones,RB120,Telephones And Fax,5410,Cable Modem User Charge August 2014,,389136,33,NET,Virgin Media Payments Ltd,09376J
Gloucester City Council,23UE,Docks Complex - Telephones,RB120,Telephones And Fax,5410,Charges June 2014,,385969,80,NET,Virgin Media Payments Ltd,09376J
Gloucester City Council,23UE,Docks Complex - Telephones,RB120,Telephones And Fax,5410,Charges June 2014,,385970,33,NET,Virgin Media Payments Ltd,09376J
Gloucester City Council,23UE,Docks Complex - Telephones,RB120,Telephones And Fax,5410,Charges June- Jul 14,,385431,39,NET,Virgin Media Payments Ltd,09376J
Gloucester City Council,23UE,Docks Complex - Telephones,RB120,Telephones And Fax,5410,Cllr james Broadband Jul- Aug,,387272,30,NET,Virgin Media Payments Ltd,09376J
Gloucester City Council,23UE,Docks Complex - Telephones,RB120,Telephones And Fax,5410,Cllr James Charges August 2014,,389135,30,NET,Virgin Media Payments Ltd,09376J
Gloucester City Council,23UE,Docks Complex - Telephones,RB120,Telephones And Fax,5410,HSI Charges July- Aug 14,,387798,33,NET,Virgin Media Payments Ltd,09376J
Gloucester City Council,23UE,Docks Complex - Telephones,RB120,Telephones And Fax,5410,Lift Line August 2014,,389138,15.18,NET,Virgin Media Payments Ltd,09376J
Gloucester City Council,23UE,Docks Complex - Telephones,RB120,Telephones And Fax,5410,Phone Charges up to 02/06/2014,,385971,14.68,NET,Virgin Media Payments Ltd,09376J
Gloucester City Council,23UE,Docks Complex - Telephones,RB120,Telephones And Fax,5410,Telephone Charges Jul-Aug 14,,387800,15.4,NET,Virgin Media Payments Ltd,09376J
Gloucester City Council,23UE,Investment Property,RB500,Lift Maintenance,3051,"Engineer 16/08/2014, Blackfriars",,390143,258.57,NET,Pickerings Europe Ltd*,58816U
Gloucester City Council,23UE,Retail Market - Landlord,HM300,General Repair/Maint Buildings,3000,Planned Maintainance 02/09/2014,,390941,276,NET,Mitchells (Gloucester) Ltd,30160U
Gloucester City Council,23UE,Tourism Marketing,LT100,Uniforms,5201,CLOTHING,,390437,85.95,NET,Simon Jersey Ltd,40555W
,,,,,,,,Sum:,2493258.64,,,
